Body Name,Body,Service division categorisation,Expense Type,Date paid,Transaction Reference,Net,Supplier Name,
South Holland District Council,http://statistics.data.gov.uk/id/local-authority/32UF,Environmental Services,Agency Staff,06/11/2014,IJ00034276,333.00,247 Personnel Ltd, 
South Holland District Council,http://statistics.data.gov.uk/id/local-authority/32UF,Environmental Services,Agency Staff,06/11/2014,IJ00034276,333.00,247 Personnel Ltd, 
South Holland District Council,http://statistics.data.gov.uk/id/local-authority/32UF,Community Development,External Printing and Design Costs,06/11/2014,IJ00034161,1576.48,Abbey Print Ltd, 
South Holland District Council,http://statistics.data.gov.uk/id/local-authority/32UF,Community Development,Water and Sewerage Charges,06/11/2014,IJ00034081,3213.17,Anglian Water, 
South Holland District Council,http://statistics.data.gov.uk/id/local-authority/32UF,ICT and Customer Services,Computer Software Licence Costs,06/11/2014,IJ00034134,605.00,Associated Consultants Ltd (Acl), 
South Holland District Council,http://statistics.data.gov.uk/id/local-authority/32UF,Community Development,Performers and Entertainers Fees,06/11/2014,IJ00034111,2000.00,Avalon Promotions Ltd, 
South Holland District Council,http://statistics.data.gov.uk/id/local-authority/32UF,Environmental Services,Agency Staff,06/11/2014,IJ00034136,988.15,Blue Arrow Ltd, 
South Holland District Council,http://statistics.data.gov.uk/id/local-authority/32UF,Environmental Services,Agency Staff,06/11/2014,IJ00034136,142.10,Blue Arrow Ltd, 
South Holland District Council,http://statistics.data.gov.uk/id/local-authority/32UF,Environmental Services,Agency Staff,06/11/2014,IJ00034136,1893.63,Blue Arrow Ltd, 
South Holland District Council,http://statistics.data.gov.uk/id/local-authority/32UF,Environmental Services,Agency Staff,06/11/2014,IJ00034136,673.26,Blue Arrow Ltd, 
South Holland District Council,http://statistics.data.gov.uk/id/local-authority/32UF,Economic Development,Professional & Contractors Fees,06/11/2014,IJ00034154,1468.74,Breckland Council, 
South Holland District Council,http://statistics.data.gov.uk/id/local-authority/32UF,Housing Landlord Manager,Fuel & Oil,06/11/2014,IJ00034103,676.28,C H Jones Ltd, 
South Holland District Council,http://statistics.data.gov.uk/id/local-authority/32UF,Environmental Services,Fuel & Oil,06/11/2014,IJ00034103,403.73,C H Jones Ltd, 
South Holland District Council,http://statistics.data.gov.uk/id/local-authority/32UF,Environmental Services,Fuel & Oil,06/11/2014,IJ00034103,1565.91,C H Jones Ltd, 
South Holland District Council,http://statistics.data.gov.uk/id/local-authority/32UF,Environmental Services,Fuel & Oil,06/11/2014,IJ00034103,532.51,C H Jones Ltd, 
South Holland District Council,http://statistics.data.gov.uk/id/local-authority/32UF,Environmental Services,Fuel & Oil,06/11/2014,IJ00034103,2303.32,C H Jones Ltd, 
South Holland District Council,http://statistics.data.gov.uk/id/local-authority/32UF,Housing Landlord Manager,Fuel & Oil,06/11/2014,IJ00034103,337.58,C H Jones Ltd, 
South Holland District Council,http://statistics.data.gov.uk/id/local-authority/32UF,Housing Landlord Manager,Fuel & Oil,06/11/2014,IJ00034103,126.42,C H Jones Ltd, 
South Holland District Council,http://statistics.data.gov.uk/id/local-authority/32UF,Environmental Services,Fuel & Oil,06/11/2014,IJ00034103,6.19,C H Jones Ltd, 
South Holland District Council,http://statistics.data.gov.uk/id/local-authority/32UF,Environmental Services,Fuel & Oil,06/11/2014,IJ00034103,6.19,C H Jones Ltd, 
South Holland District Council,http://statistics.data.gov.uk/id/local-authority/32UF,Environmental Health,Fuel & Oil,06/11/2014,IJ00034103,54.65,C H Jones Ltd, 
South Holland District Council,http://statistics.data.gov.uk/id/local-authority/32UF,Environmental Services,Fuel & Oil,06/11/2014,IJ00034103,76.10,C H Jones Ltd, 
South Holland District Council,http://statistics.data.gov.uk/id/local-authority/32UF,Housing Landlord Manager,Fuel & Oil,06/11/2014,IJ00034102,595.25,C H Jones Ltd, 
South Holland District Council,http://statistics.data.gov.uk/id/local-authority/32UF,Environmental Services,Fuel & Oil,06/11/2014,IJ00034102,378.70,C H Jones Ltd, 
South Holland District Council,http://statistics.data.gov.uk/id/local-authority/32UF,Environmental Services,Fuel & Oil,06/11/2014,IJ00034102,1502.70,C H Jones Ltd, 
South Holland District Council,http://statistics.data.gov.uk/id/local-authority/32UF,Environmental Services,Fuel & Oil,06/11/2014,IJ00034102,42.32,C H Jones Ltd, 
South Holland District Council,http://statistics.data.gov.uk/id/local-authority/32UF,Environmental Services,Fuel & Oil,06/11/2014,IJ00034102,663.44,C H Jones Ltd, 
South Holland District Council,http://statistics.data.gov.uk/id/local-authority/32UF,Environmental Services,Fuel & Oil,06/11/2014,IJ00034102,3490.44,C H Jones Ltd, 
South Holland District Council,http://statistics.data.gov.uk/id/local-authority/32UF,Housing Landlord Manager,Fuel & Oil,06/11/2014,IJ00034102,244.39,C H Jones Ltd, 
South Holland District Council,http://statistics.data.gov.uk/id/local-authority/32UF,Housing Landlord Manager,Fuel & Oil,06/11/2014,IJ00034102,151.77,C H Jones Ltd, 
South Holland District Council,http://statistics.data.gov.uk/id/local-authority/32UF,Environmental Health,Fuel & Oil,06/11/2014,IJ00034102,48.34,C H Jones Ltd, 
South Holland District Council,http://statistics.data.gov.uk/id/local-authority/32UF,Housing Landlord Manager,Fuel & Oil,06/11/2014,IJ00034264,484.92,C H Jones Ltd, 
South Holland District Council,http://statistics.data.gov.uk/id/local-authority/32UF,Environmental Services,Fuel & Oil,06/11/2014,IJ00034264,166.11,C H Jones Ltd, 
South Holland District Council,http://statistics.data.gov.uk/id/local-authority/32UF,Environmental Services,Fuel & Oil,06/11/2014,IJ00034264,2176.33,C H Jones Ltd, 
South Holland District Council,http://statistics.data.gov.uk/id/local-authority/32UF,Environmental Services,Fuel & Oil,06/11/2014,IJ00034264,384.59,C H Jones Ltd, 
South Holland District Council,http://statistics.data.gov.uk/id/local-authority/32UF,Environmental Services,Fuel & Oil,06/11/2014,IJ00034264,2364.07,C H Jones Ltd, 
South Holland District Council,http://statistics.data.gov.uk/id/local-authority/32UF,Housing Landlord Manager,Fuel & Oil,06/11/2014,IJ00034264,326.35,C H Jones Ltd, 
South Holland District Council,http://statistics.data.gov.uk/id/local-authority/32UF,Housing Landlord Manager,Fuel & Oil,06/11/2014,IJ00034264,84.58,C H Jones Ltd, 
South Holland District Council,http://statistics.data.gov.uk/id/local-authority/32UF,Environmental Services,Fuel & Oil,06/11/2014,IJ00034264,42.43,C H Jones Ltd, 
South Holland District Council,http://statistics.data.gov.uk/id/local-authority/32UF,Environmental Services,Fuel & Oil,06/11/2014,IJ00034264,5.73,C H Jones Ltd, 
South Holland District Council,http://statistics.data.gov.uk/id/local-authority/32UF,Environmental Health,Fuel & Oil,06/11/2014,IJ00034264,40.09,C H Jones Ltd, 
South Holland District Council,http://statistics.data.gov.uk/id/local-authority/32UF,Environmental Services,Fuel & Oil,06/11/2014,IJ00034264,41.75,C H Jones Ltd, 
South Holland District Council,http://statistics.data.gov.uk/id/local-authority/32UF,Finance,Compass Point Business Services,06/11/2014,IJ00034174,248630.66,Compass Point Business Srvcs (East Coast) Ltd, 
South Holland District Council,http://statistics.data.gov.uk/id/local-authority/32UF,Communications,External Printing and Design Costs,06/11/2014,IJ00034269,1586.62,Dell Computer Corporation Ltd, 
South Holland District Council,http://statistics.data.gov.uk/id/local-authority/32UF,Economic Development,Professional & Contractors Fees,06/11/2014,IJ00034115,1062.50,Dfb Associates Limited, 
South Holland District Council,http://statistics.data.gov.uk/id/local-authority/32UF,Environmental Services,Grounds Maintenance Contract (External),06/11/2014,IJ00034225,600.00,Greenscape Tree Safe Ltd, 
South Holland District Council,http://statistics.data.gov.uk/id/local-authority/32UF,Environmental Services,Grounds Maintenance Contract (External),06/11/2014,IJ00034228,995.00,Greenscape Tree Safe Ltd, 
South Holland District Council,http://statistics.data.gov.uk/id/local-authority/32UF,Environmental Services,License Fees,06/11/2014,IJ00034095,2795.00,Imperial Civil Enforcement Solutions (Compex), 
South Holland District Council,http://statistics.data.gov.uk/id/local-authority/32UF,Housing Landlord Manager,Materials and Consumables,06/11/2014,IJ00034229,5849.48,Jackson Buildbase, 
South Holland District Council,http://statistics.data.gov.uk/id/local-authority/32UF,Housing Landlord Manager,Materials and Consumables,06/11/2014,IJ00034229,9305.59,Jackson Buildbase, 
South Holland District Council,http://statistics.data.gov.uk/id/local-authority/32UF,Housing Landlord Manager,Materials and Consumables,06/11/2014,IJ00034229,1232.35,Jackson Buildbase, 
South Holland District Council,http://statistics.data.gov.uk/id/local-authority/32UF,Housing Landlord Manager,Agency Staff,06/11/2014,IJ00034088,820.11,James Andrews Recruitment Solutions, 
South Holland District Council,http://statistics.data.gov.uk/id/local-authority/32UF,Housing Landlord Manager,Agency Staff,06/11/2014,IJ00034198,848.78,James Andrews Recruitment Solutions, 
South Holland District Council,http://statistics.data.gov.uk/id/local-authority/32UF,Community Development,Buildings Maintenance - Programmed,06/11/2014,IJ00034116,948.00,K L Morbey Fencing, 
South Holland District Council,http://statistics.data.gov.uk/id/local-authority/32UF,Planning,Professional & Contractors Fees,06/11/2014,IJ00034238,2656.00,Ocella Ltd, 
South Holland District Council,http://statistics.data.gov.uk/id/local-authority/32UF,Environmental Services,Professional & Contractors Fees,06/11/2014,IJ00034077,1500.63,Ocs Group Uk Limited TA Cannon, 
South Holland District Council,http://statistics.data.gov.uk/id/local-authority/32UF,Housing Landlord Manager,Materials and Consumables,06/11/2014,IJ00034194,644.52,Rexel Uk Ltd, 
South Holland District Council,http://statistics.data.gov.uk/id/local-authority/32UF,Housing Landlord Manager,Void Repairs,06/11/2014,IJ00034243,1150.00,Robert Dunmore, 
South Holland District Council,http://statistics.data.gov.uk/id/local-authority/32UF,ICT and Customer Services,Computer Software Licence Costs,06/11/2014,IJ00034110,1435.10,Siteimprove Ltd, 
South Holland District Council,http://statistics.data.gov.uk/id/local-authority/32UF,Finance,Internal Drainage Board Levies,06/11/2014,IJ00034172,589172.50,South Holland Internal Drainage Board, 
South Holland District Council,http://statistics.data.gov.uk/id/local-authority/32UF,Environmental Services,Professional & Contractors Fees,06/11/2014,IJ00034109,3908.89,South Holland Maintenance Ltd, 
South Holland District Council,http://statistics.data.gov.uk/id/local-authority/32UF,Housing Landlord Manager,Void Repairs,06/11/2014,IJ00034221,990.00,South Holland Maintenance Ltd, 
South Holland District Council,http://statistics.data.gov.uk/id/local-authority/32UF,Asset and Property,Buildings Maintenance - Responsive,06/11/2014,IJ00034260,1186.00,Teams, 
South Holland District Council,http://statistics.data.gov.uk/id/local-authority/32UF,Environmental Services,Agency Staff,06/11/2014,IJ00034101,89.54,The Best Connection Group Ltd, 
South Holland District Council,http://statistics.data.gov.uk/id/local-authority/32UF,Environmental Services,Agency Staff,06/11/2014,IJ00034101,704.47,The Best Connection Group Ltd, 
South Holland District Council,http://statistics.data.gov.uk/id/local-authority/32UF,Environmental Services,Agency Staff,06/11/2014,IJ00034101,89.55,The Best Connection Group Ltd, 
South Holland District Council,http://statistics.data.gov.uk/id/local-authority/32UF,Environmental Services,Agency Staff,06/11/2014,IJ00034123,537.30,The Best Connection Group Ltd, 
South Holland District Council,http://statistics.data.gov.uk/id/local-authority/32UF,Environmental Services,Furniture and Equipment,06/11/2014,IJ00034258,924.27,TMC, 
South Holland District Council,http://statistics.data.gov.uk/id/local-authority/32UF,Environmental Services,Tyres,06/11/2014,IJ00034268,1456.27,Vaculug Traction Tyres Ltd, 
South Holland District Council,http://statistics.data.gov.uk/id/local-authority/32UF,Environmental Services,Tyres,06/11/2014,IJ00034268,1547.53,Vaculug Traction Tyres Ltd, 
South Holland District Council,http://statistics.data.gov.uk/id/local-authority/32UF,Environmental Services,Tyres,06/11/2014,IJ00034268,20.00,Vaculug Traction Tyres Ltd, 
South Holland District Council,http://statistics.data.gov.uk/id/local-authority/32UF,Environmental Services,Tyres,06/11/2014,IJ00034268,140.43,Vaculug Traction Tyres Ltd, 
South Holland District Council,http://statistics.data.gov.uk/id/local-authority/32UF,Environmental Services,Tyres,06/11/2014,IJ00034268,158.42,Vaculug Traction Tyres Ltd, 
South Holland District Council,http://statistics.data.gov.uk/id/local-authority/32UF,Community Development,External Printing and Design Costs,06/11/2014,IJ00034082,905.00,Welland Print Limited, 
South Holland District Council,http://statistics.data.gov.uk/id/local-authority/32UF,Housing Landlord Manager,Void Repairs,06/11/2014,IJ00034211,750.00,Spotless Cleaning, 
South Holland District Council,http://statistics.data.gov.uk/id/local-authority/32UF,Democratic Services,Other Miscellaneous Expenses,06/11/2014,IJ00034246,500.00,Home Start South Holland, 
South Holland District Council,http://statistics.data.gov.uk/id/local-authority/32UF,Finance,Internal Drainage Board Levies,06/11/2014,IJ00034173,11187.00,KINGS LYNN INTERNAL DRAINAGE BOARD, 
South Holland District Council,http://statistics.data.gov.uk/id/local-authority/32UF,Environmental Services,Stationery,06/11/2014,IJ00034075,546.00,NAGELS UK LIMITED, 
South Holland District Council,http://statistics.data.gov.uk/id/local-authority/32UF,ICT and Customer Services,Computer Software Licence Costs,06/11/2014,IJ00034108,1909.50,INFRASYS LTD, 
South Holland District Council,http://statistics.data.gov.uk/id/local-authority/32UF,Housing,Drainage Rates,06/11/2014,IJ00034226,5829.00,MPL HOME IMPROVEMENTS SERVICES LINCS LTD, 
South Holland District Council,http://statistics.data.gov.uk/id/local-authority/32UF,Democratic Services,Postages,06/11/2014,IJ00034090,2729.88,ELECTORAL REFORM SERVICES, 
South Holland District Council,http://statistics.data.gov.uk/id/local-authority/32UF,Balance Sheet,Current Liabilities Short Term Borrowing,06/11/2014,IJ00034288,2651.12,SALIX FINANCE LTD, 
South Holland District Council,http://statistics.data.gov.uk/id/local-authority/32UF,Housing Landlord Manager,Furniture and Equipment,06/11/2014,IJ00034236,1226.08,Hilti GB Ltd, 
South Holland District Council,http://statistics.data.gov.uk/id/local-authority/32UF,Housing Landlord Manager,Furniture and Equipment,06/11/2014,IJ00034236,722.57,Hilti GB Ltd, 
South Holland District Council,http://statistics.data.gov.uk/id/local-authority/32UF,Housing Landlord Manager,Void Repairs,06/11/2014,IJ00034223,726.00,Andrew Hicks t a Hicks Electrical, 
South Holland District Council,http://statistics.data.gov.uk/id/local-authority/32UF,Housing,Grants and Contributions to Outside Bodies- No Service Recei,06/11/2014,IJ00034135,2085.00,M Yould Plumbing and Heating Ltd, 
South Holland District Council,http://statistics.data.gov.uk/id/local-authority/32UF,Environmental Health,Professional & Contractors Fees,06/11/2014,IJ00034241,569.75,Kingsley Hamilton, 
South Holland District Council,http://statistics.data.gov.uk/id/local-authority/32UF,Capital,Works to Buildings (main Contractor),06/11/2014,IJ00034078,4750.00,MCP Environmental, 
South Holland District Council,http://statistics.data.gov.uk/id/local-authority/32UF,Capital,Works to Buildings (main Contractor),06/11/2014,IJ00034079,1050.00,MCP Environmental, 
South Holland District Council,http://statistics.data.gov.uk/id/local-authority/32UF,Economic Development,Professional & Contractors Fees,06/11/2014,IJ00034155,800.00,Peakhill Assocaites, 
South Holland District Council,http://statistics.data.gov.uk/id/local-authority/32UF,Planning,Professional & Contractors Fees,06/11/2014,IJ00034128,1075.10,MatchTech Group Plc, 
South Holland District Council,http://statistics.data.gov.uk/id/local-authority/32UF,Economic Development,Professional & Contractors Fees,06/11/2014,IJ00034094,8118.00,RESOURCE4GROWTH C I C LTD, 
South Holland District Council,http://statistics.data.gov.uk/id/local-authority/32UF,Environmental Services,Maintenance,06/11/2014,IJ00034275,6324.40,Kier FPS Limited, 
South Holland District Council,http://statistics.data.gov.uk/id/local-authority/32UF,Environmental Services,Maintenance,06/11/2014,IJ00034275,4743.30,Kier FPS Limited, 
South Holland District Council,http://statistics.data.gov.uk/id/local-authority/32UF,Housing Landlord Manager,Buildings Maintenance - Responsive,06/11/2014,IJ00034277,2100.00,Dean Stevens, 
South Holland District Council,http://statistics.data.gov.uk/id/local-authority/32UF,Housing Landlord Manager,Buildings Maintenance - Responsive,06/11/2014,IJ00034279,1440.00,Dean Stevens, 
South Holland District Council,http://statistics.data.gov.uk/id/local-authority/32UF,Housing Landlord Manager,Damp Proofing,06/11/2014,IJ00034043,2274.00,DAMP PROOF 1 LTD, 
South Holland District Council,http://statistics.data.gov.uk/id/local-authority/32UF,Housing Landlord Manager,Damp Proofing,06/11/2014,IJ00034045,1537.00,DAMP PROOF 1 LTD, 
South Holland District Council,http://statistics.data.gov.uk/id/local-authority/32UF,Environmental Health,Furniture and Equipment,06/11/2014,IJ00034118,2163.99,Dictating Machine Co Ltd, 
South Holland District Council,http://statistics.data.gov.uk/id/local-authority/32UF,Housing Landlord Manager,Staff Training Expenses,06/11/2014,IJ00034151,2978.00,Centre For Housing and Support, 
South Holland District Council,http://statistics.data.gov.uk/id/local-authority/32UF,Capital,Purchase of Vehicles,10/11/2014,IJ00034327,20232.88,Ford Motor Company Limited, 
South Holland District Council,http://statistics.data.gov.uk/id/local-authority/32UF,Capital,Purchase of Vehicles,10/11/2014,IJ00034327,286.00,Ford Motor Company Limited, 
South Holland District Council,http://statistics.data.gov.uk/id/local-authority/32UF,Asset and Property,Agency Staff,13/11/2014,IJ00034486,818.36,5 Star Facility Management, 
South Holland District Council,http://statistics.data.gov.uk/id/local-authority/32UF,Housing Landlord Manager,Computer Software Licence Costs,13/11/2014,IJ00034431,1863.50,Automico Limited, 
South Holland District Council,http://statistics.data.gov.uk/id/local-authority/32UF,Housing Landlord Manager,Cesspool Empying,13/11/2014,IJ00034310,1496.00,Bates Environmental Ltd, 
South Holland District Council,http://statistics.data.gov.uk/id/local-authority/32UF,Housing Landlord Manager,Drain Repairs,13/11/2014,IJ00034310,2780.00,Bates Environmental Ltd, 
South Holland District Council,http://statistics.data.gov.uk/id/local-authority/32UF,Housing Landlord Manager,Sewerage Treatment Works,13/11/2014,IJ00034310,2851.00,Bates Environmental Ltd, 
South Holland District Council,http://statistics.data.gov.uk/id/local-authority/32UF,Environmental Services,Agency Staff,13/11/2014,IJ00034378,455.40,Blue Arrow Ltd, 
South Holland District Council,http://statistics.data.gov.uk/id/local-authority/32UF,Environmental Services,Agency Staff,13/11/2014,IJ00034378,1072.75,Blue Arrow Ltd, 
South Holland District Council,http://statistics.data.gov.uk/id/local-authority/32UF,Environmental Services,Agency Staff,13/11/2014,IJ00034378,1886.63,Blue Arrow Ltd, 
South Holland District Council,http://statistics.data.gov.uk/id/local-authority/32UF,Environmental Services,Agency Staff,13/11/2014,IJ00034378,304.58,Blue Arrow Ltd, 
South Holland District Council,http://statistics.data.gov.uk/id/local-authority/32UF,Environmental Services,Materials and Consumables,13/11/2014,IJ00034344,5792.79,Bpi Recycled Products, 
South Holland District Council,http://statistics.data.gov.uk/id/local-authority/32UF,Chief Executive,Shared Management,13/11/2014,IJ00034303,52201.06,Breckland Council, 
South Holland District Council,http://statistics.data.gov.uk/id/local-authority/32UF,Building Control,Buildings Maintenance - Programmed,13/11/2014,IJ00034324,1040.00,Brooks (Spalding) Ltd, 
South Holland District Council,http://statistics.data.gov.uk/id/local-authority/32UF,Building Control,Buildings Maintenance - Programmed,13/11/2014,IJ00034326,780.00,Brooks (Spalding) Ltd, 
South Holland District Council,http://statistics.data.gov.uk/id/local-authority/32UF,Building Control,Buildings Maintenance - Programmed,13/11/2014,IJ00034341,650.00,Brooks (Spalding) Ltd, 
South Holland District Council,http://statistics.data.gov.uk/id/local-authority/32UF,Finance,Professional & Contractors Fees,13/11/2014,IJ00034469,1025.05,Capita Business Services Ltd, 
South Holland District Council,http://statistics.data.gov.uk/id/local-authority/32UF,Housing Landlord Manager,Furniture and Equipment,13/11/2014,IJ00034399,780.00,Castlebuild Scaffolding Ltd, 
South Holland District Council,http://statistics.data.gov.uk/id/local-authority/32UF,Housing Landlord Manager,Sewerage Treatment Works,13/11/2014,IJ00034306,20010.18,C.G. Godfrey Ltd, 
South Holland District Council,http://statistics.data.gov.uk/id/local-authority/32UF,Housing Landlord Manager,Fuel & Oil,13/11/2014,IJ00034319,397.91,C H Jones Ltd, 
South Holland District Council,http://statistics.data.gov.uk/id/local-authority/32UF,Environmental Services,Fuel & Oil,13/11/2014,IJ00034319,236.15,C H Jones Ltd, 
South Holland District Council,http://statistics.data.gov.uk/id/local-authority/32UF,Environmental Services,Fuel & Oil,13/11/2014,IJ00034319,2391.05,C H Jones Ltd, 
South Holland District Council,http://statistics.data.gov.uk/id/local-authority/32UF,Environmental Services,Fuel & Oil,13/11/2014,IJ00034319,455.97,C H Jones Ltd, 
South Holland District Council,http://statistics.data.gov.uk/id/local-authority/32UF,Environmental Services,Fuel & Oil,13/11/2014,IJ00034319,2205.07,C H Jones Ltd, 
South Holland District Council,http://statistics.data.gov.uk/id/local-authority/32UF,Housing Landlord Manager,Fuel & Oil,13/11/2014,IJ00034319,183.36,C H Jones Ltd, 
South Holland District Council,http://statistics.data.gov.uk/id/local-authority/32UF,Housing Landlord Manager,Fuel & Oil,13/11/2014,IJ00034319,126.34,C H Jones Ltd, 
South Holland District Council,http://statistics.data.gov.uk/id/local-authority/32UF,Environmental Services,Fuel & Oil,13/11/2014,IJ00034319,25.50,C H Jones Ltd, 
South Holland District Council,http://statistics.data.gov.uk/id/local-authority/32UF,Environmental Services,Fuel & Oil,13/11/2014,IJ00034319,6.78,C H Jones Ltd, 
South Holland District Council,http://statistics.data.gov.uk/id/local-authority/32UF,Environmental Services,Fuel & Oil,13/11/2014,IJ00034319,37.89,C H Jones Ltd, 
South Holland District Council,http://statistics.data.gov.uk/id/local-authority/32UF,Asset and Property,Buildings Maintenance - Responsive,13/11/2014,IJ00034475,1095.00,Churches Fire Security Ltd, 
South Holland District Council,http://statistics.data.gov.uk/id/local-authority/32UF,Community Development,External Printing and Design Costs,13/11/2014,IJ00034451,259.00,Classic Printers, 
South Holland District Council,http://statistics.data.gov.uk/id/local-authority/32UF,Community Development,Postages,13/11/2014,IJ00034451,1038.39,Classic Printers, 
South Holland District Council,http://statistics.data.gov.uk/id/local-authority/32UF,ICT and Customer Services,External Printing and Design Costs,13/11/2014,IJ00034494,7479.24,Compass Point Business Srvcs (East Coast) Ltd, 
South Holland District Council,http://statistics.data.gov.uk/id/local-authority/32UF,ICT and Customer Services,Furniture and Equipment,13/11/2014,IJ00034497,2147.67,Compass Point Business Srvcs (East Coast) Ltd, 
South Holland District Council,http://statistics.data.gov.uk/id/local-authority/32UF,ICT and Customer Services,Computer Hardware Maintenance,13/11/2014,IJ00034497,29.99,Compass Point Business Srvcs (East Coast) Ltd, 
South Holland District Council,http://statistics.data.gov.uk/id/local-authority/32UF,ICT and Customer Services,Computer Software Licence Costs,13/11/2014,IJ00034497,345.14,Compass Point Business Srvcs (East Coast) Ltd, 
South Holland District Council,http://statistics.data.gov.uk/id/local-authority/32UF,Housing Landlord Manager,Telephones,13/11/2014,IJ00034497,626.19,Compass Point Business Srvcs (East Coast) Ltd, 
South Holland District Council,http://statistics.data.gov.uk/id/local-authority/32UF,Housing Landlord Manager,Court Costs,13/11/2014,IJ00034497,348.00,Compass Point Business Srvcs (East Coast) Ltd, 
South Holland District Council,http://statistics.data.gov.uk/id/local-authority/32UF,Housing,Court Costs,13/11/2014,IJ00034497,60.00,Compass Point Business Srvcs (East Coast) Ltd, 
South Holland District Council,http://statistics.data.gov.uk/id/local-authority/32UF,Housing Landlord Manager,Court Costs,13/11/2014,IJ00034497,144.00,Compass Point Business Srvcs (East Coast) Ltd, 
South Holland District Council,http://statistics.data.gov.uk/id/local-authority/32UF,Housing Landlord Manager,Court Costs,13/11/2014,IJ00034497,25.00,Compass Point Business Srvcs (East Coast) Ltd, 
South Holland District Council,http://statistics.data.gov.uk/id/local-authority/32UF,Environmental Health,Court Costs,13/11/2014,IJ00034497,30.00,Compass Point Business Srvcs (East Coast) Ltd, 
South Holland District Council,http://statistics.data.gov.uk/id/local-authority/32UF,Finance,Court Costs,13/11/2014,IJ00034497,30.00,Compass Point Business Srvcs (East Coast) Ltd, 
South Holland District Council,http://statistics.data.gov.uk/id/local-authority/32UF,Housing Landlord Manager,Court Costs,13/11/2014,IJ00034497,126.00,Compass Point Business Srvcs (East Coast) Ltd, 
South Holland District Council,http://statistics.data.gov.uk/id/local-authority/32UF,Capital,Works to Buildings (main Contractor),13/11/2014,IJ00034466,136135.00,Foster Property Maintenance Ltd, 
South Holland District Council,http://statistics.data.gov.uk/id/local-authority/32UF,Housing Landlord Manager,Void Repairs,13/11/2014,IJ00034453,145.30,Glass Recycling (Uk) Ltd, 
South Holland District Council,http://statistics.data.gov.uk/id/local-authority/32UF,Housing Landlord Manager,Buildings Maintenance - Responsive,13/11/2014,IJ00034453,2761.10,Glass Recycling (Uk) Ltd, 
South Holland District Council,http://statistics.data.gov.uk/id/local-authority/32UF,Housing Landlord Manager,Grounds Maintenance Contract (External),13/11/2014,IJ00034295,1250.00,Greenscape Tree Safe Ltd, 
South Holland District Council,http://statistics.data.gov.uk/id/local-authority/32UF,Community Development,Buildings Maintenance - Responsive,13/11/2014,IJ00034495,1370.00,Hawthorn Theatrical Ltd, 
South Holland District Council,http://statistics.data.gov.uk/id/local-authority/32UF,Environmental Services,Agency Staff,13/11/2014,IJ00034320,211.13,Integrity Plus Ltd, 
South Holland District Council,http://statistics.data.gov.uk/id/local-authority/32UF,Environmental Services,Agency Staff,13/11/2014,IJ00034320,73.65,Integrity Plus Ltd, 
South Holland District Council,http://statistics.data.gov.uk/id/local-authority/32UF,Environmental Services,Agency Staff,13/11/2014,IJ00034320,363.34,Integrity Plus Ltd, 
South Holland District Council,http://statistics.data.gov.uk/id/local-authority/32UF,Housing Landlord Manager,Agency Staff,13/11/2014,IJ00034373,53.64,Integrity Plus Ltd, 
South Holland District Council,http://statistics.data.gov.uk/id/local-authority/32UF,Housing Landlord Manager,Agency Staff,13/11/2014,IJ00034373,402.26,Integrity Plus Ltd, 
South Holland District Council,http://statistics.data.gov.uk/id/local-authority/32UF,Housing Landlord Manager,Agency Staff,13/11/2014,IJ00034373,67.04,Integrity Plus Ltd, 
South Holland District Council,http://statistics.data.gov.uk/id/local-authority/32UF,Housing Landlord Manager,Materials and Consumables,13/11/2014,IJ00034455,7850.37,Jackson Buildbase, 
South Holland District Council,http://statistics.data.gov.uk/id/local-authority/32UF,Housing Landlord Manager,Materials and Consumables,13/11/2014,IJ00034455,6211.33,Jackson Buildbase, 
South Holland District Council,http://statistics.data.gov.uk/id/local-authority/32UF,Housing Landlord Manager,Materials and Consumables,13/11/2014,IJ00034455,519.59,Jackson Buildbase, 
South Holland District Council,http://statistics.data.gov.uk/id/local-authority/32UF,Revs and Bens,VAT Customs and Excise,13/11/2014,IJ00034312,1349.69,Jacobs Certificated Bailiffs, 
South Holland District Council,http://statistics.data.gov.uk/id/local-authority/32UF,Community Development,Other Miscellaneous Expenses,13/11/2014,IJ00034106,595.00,Leisure In The Community Ltd, 
South Holland District Council,http://statistics.data.gov.uk/id/local-authority/32UF,Housing Landlord Manager,Buildings Maintenance - Responsive,13/11/2014,IJ00034406,895.70,L Fragale, 
South Holland District Council,http://statistics.data.gov.uk/id/local-authority/32UF,Capital,Works to Buildings (main Contractor),13/11/2014,IJ00034405,1836.00,M E Goodyear Property Maintenance, 
South Holland District Council,http://statistics.data.gov.uk/id/local-authority/32UF,Community Development,Performers and Entertainers Fees,13/11/2014,IJ00034449,580.27,Picturehouse Entertainment Limited, 
South Holland District Council,http://statistics.data.gov.uk/id/local-authority/32UF,Community Development,Performers and Entertainers Fees,13/11/2014,IJ00034435,550.00,Rhubarb Theatre, 
South Holland District Council,http://statistics.data.gov.uk/id/local-authority/32UF,Housing Landlord Manager,Void Repairs,13/11/2014,IJ00034491,1750.00,Robert Dunmore, 
South Holland District Council,http://statistics.data.gov.uk/id/local-authority/32UF,Community Development,Electricity,13/11/2014,IJ00034448,2076.95,Southern Electric, 
South Holland District Council,http://statistics.data.gov.uk/id/local-authority/32UF,Housing Landlord Manager,Maintenance of Footpaths and Roadways,13/11/2014,IJ00034348,600.00,South Holland Maintenance Ltd, 
South Holland District Council,http://statistics.data.gov.uk/id/local-authority/32UF,Housing Landlord Manager,Void Repairs,13/11/2014,IJ00034404,940.00,South Holland Maintenance Ltd, 
South Holland District Council,http://statistics.data.gov.uk/id/local-authority/32UF,Housing Landlord Manager,Other Communication Costs,13/11/2014,IJ00034507,18600.00,Tunstall Healthcare UK Ltd, 
South Holland District Council,http://statistics.data.gov.uk/id/local-authority/32UF,Housing Landlord Manager,Staff Training Expenses,13/11/2014,IJ00034460,520.00,WEST LINDSEY DISTRICT COUNCIL, 
South Holland District Council,http://statistics.data.gov.uk/id/local-authority/32UF,ICT and Customer Services,Professional & Contractors Fees,13/11/2014,IJ00034482,1110.00,VTEQ Ltd, 
South Holland District Council,http://statistics.data.gov.uk/id/local-authority/32UF,Finance,Professional & Contractors Fees,13/11/2014,IJ00034464,590.69,Lloyds TSB, 
South Holland District Council,http://statistics.data.gov.uk/id/local-authority/32UF,Environmental Services,Commercial Vehicle Lease,13/11/2014,IJ00034479,710.65,NORTHRIDGE FINANCE LTD, 
South Holland District Council,http://statistics.data.gov.uk/id/local-authority/32UF,Community Development,Other Miscellaneous Expenses,13/11/2014,IJ00034363,1675.00,GREEN LIGHT TRAFFIC MANAGEMENT LTD, 
South Holland District Council,http://statistics.data.gov.uk/id/local-authority/32UF,Housing Landlord Manager,Void Repairs,13/11/2014,IJ00034409,3281.98,M Yould Plumbing and Heating Ltd, 
South Holland District Council,http://statistics.data.gov.uk/id/local-authority/32UF,Housing Landlord Manager,Void Repairs,13/11/2014,IJ00034410,4950.00,M Yould Plumbing and Heating Ltd, 
South Holland District Council,http://statistics.data.gov.uk/id/local-authority/32UF,Housing Landlord Manager,Void Repairs,13/11/2014,IJ00034411,645.00,M Yould Plumbing and Heating Ltd, 
South Holland District Council,http://statistics.data.gov.uk/id/local-authority/32UF,Housing Landlord Manager,Void Repairs,13/11/2014,IJ00034412,1520.00,M Yould Plumbing and Heating Ltd, 
South Holland District Council,http://statistics.data.gov.uk/id/local-authority/32UF,Housing Landlord Manager,Void Repairs,13/11/2014,IJ00034413,4296.30,M Yould Plumbing and Heating Ltd, 
South Holland District Council,http://statistics.data.gov.uk/id/local-authority/32UF,Housing Landlord Manager,Void Repairs,13/11/2014,IJ00034427,3000.00,M Yould Plumbing and Heating Ltd, 
South Holland District Council,http://statistics.data.gov.uk/id/local-authority/32UF,Housing Landlord Manager,Void Repairs,13/11/2014,IJ00034428,4800.00,M Yould Plumbing and Heating Ltd, 
South Holland District Council,http://statistics.data.gov.uk/id/local-authority/32UF,Housing Landlord Manager,Void Repairs,13/11/2014,IJ00034429,13850.00,M Yould Plumbing and Heating Ltd, 
South Holland District Council,http://statistics.data.gov.uk/id/local-authority/32UF,Housing Landlord Manager,Void Repairs,13/11/2014,IJ00034414,3189.14,M Yould Plumbing and Heating Ltd, 
South Holland District Council,http://statistics.data.gov.uk/id/local-authority/32UF,Housing Landlord Manager,Void Repairs,13/11/2014,IJ00034415,3189.14,M Yould Plumbing and Heating Ltd, 
South Holland District Council,http://statistics.data.gov.uk/id/local-authority/32UF,Housing Landlord Manager,Void Repairs,13/11/2014,IJ00034416,1140.00,M Yould Plumbing and Heating Ltd, 
South Holland District Council,http://statistics.data.gov.uk/id/local-authority/32UF,Housing Landlord Manager,Void Repairs,13/11/2014,IJ00034417,3000.00,M Yould Plumbing and Heating Ltd, 
South Holland District Council,http://statistics.data.gov.uk/id/local-authority/32UF,Housing Landlord Manager,Void Repairs,13/11/2014,IJ00034418,600.00,M Yould Plumbing and Heating Ltd, 
South Holland District Council,http://statistics.data.gov.uk/id/local-authority/32UF,Housing Landlord Manager,Void Repairs,13/11/2014,IJ00034419,1500.00,M Yould Plumbing and Heating Ltd, 
South Holland District Council,http://statistics.data.gov.uk/id/local-authority/32UF,Housing Landlord Manager,Void Repairs,13/11/2014,IJ00034420,1350.00,M Yould Plumbing and Heating Ltd, 
South Holland District Council,http://statistics.data.gov.uk/id/local-authority/32UF,Housing Landlord Manager,Void Repairs,13/11/2014,IJ00034421,6657.04,M Yould Plumbing and Heating Ltd, 
South Holland District Council,http://statistics.data.gov.uk/id/local-authority/32UF,Housing Landlord Manager,Void Repairs,13/11/2014,IJ00034422,3857.04,M Yould Plumbing and Heating Ltd, 
South Holland District Council,http://statistics.data.gov.uk/id/local-authority/32UF,Housing Landlord Manager,Void Repairs,13/11/2014,IJ00034423,600.00,M Yould Plumbing and Heating Ltd, 
South Holland District Council,http://statistics.data.gov.uk/id/local-authority/32UF,Environmental Health,Professional & Contractors Fees,13/11/2014,IJ00034335,645.00,Kingsley Hamilton, 
South Holland District Council,http://statistics.data.gov.uk/id/local-authority/32UF,Community Development,Other Miscellaneous Expenses,13/11/2014,IJ00034512,595.00,Leisure in the Community, 
South Holland District Council,http://statistics.data.gov.uk/id/local-authority/32UF,Capital,Works to Buildings (main Contractor),13/11/2014,IJ00034346,1050.00,MCP Environmental, 
South Holland District Council,http://statistics.data.gov.uk/id/local-authority/32UF,Capital,Works to Buildings (main Contractor),13/11/2014,IJ00034332,140439.00,Willmott Dixon Partnerships Ltd, 
South Holland District Council,http://statistics.data.gov.uk/id/local-authority/32UF,Housing Landlord Manager,Computer Hardware Purchase,13/11/2014,IJ00034458,727.55,Spectrum Computer Supplies Ltd, 
South Holland District Council,http://statistics.data.gov.uk/id/local-authority/32UF,Housing Landlord Manager,Professional & Contractors Fees,13/11/2014,IJ00034347,12060.00,DMW Environmental Safety Ltd, 
South Holland District Council,http://statistics.data.gov.uk/id/local-authority/32UF,Community Development,Performers and Entertainers Fees,13/11/2014,IJ00034445,760.00,Funhouse Comedy, 
South Holland District Council,http://statistics.data.gov.uk/id/local-authority/32UF,Economic Development,Professional & Contractors Fees,13/11/2014,IJ00034372,987.50,Lava Marketing Communications Limited, 
South Holland District Council,http://statistics.data.gov.uk/id/local-authority/32UF,Economic Development,Grants and Contributions to Outside Bodies- No Service Recei,13/11/2014,IJ00034371,13000.00,The Roasting Company Limited, 
South Holland District Council,http://statistics.data.gov.uk/id/local-authority/32UF,Community Development,Film and Entertainment Costs,13/11/2014,IJ00034439,575.00,Arts Alliance Media, 
South Holland District Council,http://statistics.data.gov.uk/id/local-authority/32UF,Capital,Works to Buildings (main Contractor),13/11/2014,IJ00034463,45000.00,Elite Decor UK Limited, 
South Holland District Council,http://statistics.data.gov.uk/id/local-authority/32UF,Housing Landlord Manager,Buildings Maintenance - Responsive,13/11/2014,IJ00034383,1100.00,M Stevens, 
South Holland District Council,http://statistics.data.gov.uk/id/local-authority/32UF,Housing Landlord Manager,Buildings Maintenance - Responsive,13/11/2014,IJ00034387,2570.00,Dean Stevens, 
South Holland District Council,http://statistics.data.gov.uk/id/local-authority/32UF,Community Development,Furniture and Equipment,13/11/2014,IJ00034443,1222.23,Dcinex UK Limited, 
South Holland District Council,http://statistics.data.gov.uk/id/local-authority/32UF,Capital,Purchase of Vehicles,13/11/2014,IJ00034328,20232.87,Ford Motor Company Limited, 
South Holland District Council,http://statistics.data.gov.uk/id/local-authority/32UF,Capital,Purchase of Vehicles,13/11/2014,IJ00034328,286.00,Ford Motor Company Limited, 
South Holland District Council,http://statistics.data.gov.uk/id/local-authority/32UF,Capital,Purchase of Vehicles,13/11/2014,IJ00034329,20232.87,Ford Motor Company Limited, 
South Holland District Council,http://statistics.data.gov.uk/id/local-authority/32UF,Capital,Purchase of Vehicles,13/11/2014,IJ00034329,280.00,Ford Motor Company Limited, 
South Holland District Council,http://statistics.data.gov.uk/id/local-authority/32UF,Capital,Purchase of Vehicles,13/11/2014,IJ00034330,20232.87,Ford Motor Company Limited, 
South Holland District Council,http://statistics.data.gov.uk/id/local-authority/32UF,Capital,Purchase of Vehicles,13/11/2014,IJ00034330,280.00,Ford Motor Company Limited, 
South Holland District Council,http://statistics.data.gov.uk/id/local-authority/32UF,Capital,Purchase of Vehicles,13/11/2014,IJ00034331,20232.87,Ford Motor Company Limited, 
South Holland District Council,http://statistics.data.gov.uk/id/local-authority/32UF,Capital,Purchase of Vehicles,13/11/2014,IJ00034331,286.00,Ford Motor Company Limited, 
South Holland District Council,http://statistics.data.gov.uk/id/local-authority/32UF,Capital,Purchase of Vehicles,13/11/2014,IJ00034513,286.00,Ford Motor Company Limited, 
South Holland District Council,http://statistics.data.gov.uk/id/local-authority/32UF,Capital,Purchase of Vehicles,13/11/2014,IJ00034513,20232.87,Ford Motor Company Limited, 
South Holland District Council,http://statistics.data.gov.uk/id/local-authority/32UF,Community Development,Performers and Entertainers Fees,13/11/2014,IJ00034447,1500.00,VAGABONDS HAT, 
South Holland District Council,http://statistics.data.gov.uk/id/local-authority/32UF,Community Development,Leisure Management,14/11/2014,IJ00034520,5631.03,Leisure In The Community Ltd, 
South Holland District Council,http://statistics.data.gov.uk/id/local-authority/32UF,Community Development,Leisure Management,14/11/2014,IJ00034520,5631.03,Leisure In The Community Ltd, 
South Holland District Council,http://statistics.data.gov.uk/id/local-authority/32UF,Environmental Services,Agency Staff,20/11/2014,IJ00034615,540.00,247 Personnel Ltd, 
South Holland District Council,http://statistics.data.gov.uk/id/local-authority/32UF,Environmental Services,Agency Staff,20/11/2014,IJ00034615,459.00,247 Personnel Ltd, 
South Holland District Council,http://statistics.data.gov.uk/id/local-authority/32UF,Environmental Services,Agency Staff,20/11/2014,IJ00034615,67.50,247 Personnel Ltd, 
South Holland District Council,http://statistics.data.gov.uk/id/local-authority/32UF,Community Development,Buildings Maintenance - Responsive,20/11/2014,IJ00034598,2324.67,Adt Fire And Security Plc, 
South Holland District Council,http://statistics.data.gov.uk/id/local-authority/32UF,Community Development,Other Miscellaneous Expenses,20/11/2014,IJ00034560,1500.00,Ajb Communications, 
South Holland District Council,http://statistics.data.gov.uk/id/local-authority/32UF,Environmental Services,Water and Sewerage Charges,20/11/2014,IJ00034542,610.05,Anglian Water, 
South Holland District Council,http://statistics.data.gov.uk/id/local-authority/32UF,Asset and Property,Water and Sewerage Charges,20/11/2014,IJ00034601,2155.44,Anglian Water, 
South Holland District Council,http://statistics.data.gov.uk/id/local-authority/32UF,Environmental Services,Professional & Contractors Fees,20/11/2014,IJ00034565,900.00,A Riddel Skip Hire & Scrap Metal Merchants, 
South Holland District Council,http://statistics.data.gov.uk/id/local-authority/32UF,Community Development,Performers and Entertainers Fees,20/11/2014,IJ00034607,906.38,Avalon Promotions Ltd, 
South Holland District Council,http://statistics.data.gov.uk/id/local-authority/32UF,Housing Landlord Manager,Materials and Consumables,20/11/2014,IJ00034652,995.10,B Ayres, 
South Holland District Council,http://statistics.data.gov.uk/id/local-authority/32UF,Housing Landlord Manager,Materials and Consumables,20/11/2014,IJ00034652,648.30,B Ayres, 
South Holland District Council,http://statistics.data.gov.uk/id/local-authority/32UF,Environmental Services,Agency Staff,20/11/2014,IJ00034612,456.75,Blue Arrow Ltd, 
South Holland District Council,http://statistics.data.gov.uk/id/local-authority/32UF,Environmental Services,Agency Staff,20/11/2014,IJ00034612,1443.55,Blue Arrow Ltd, 
South Holland District Council,http://statistics.data.gov.uk/id/local-authority/32UF,Environmental Services,Agency Staff,20/11/2014,IJ00034612,1438.35,Blue Arrow Ltd, 
South Holland District Council,http://statistics.data.gov.uk/id/local-authority/32UF,Environmental Services,Agency Staff,20/11/2014,IJ00034612,67.53,Blue Arrow Ltd, 
South Holland District Council,http://statistics.data.gov.uk/id/local-authority/32UF,Environmental Services,Agency Staff,20/11/2014,IJ00034612,218.23,Blue Arrow Ltd, 
South Holland District Council,http://statistics.data.gov.uk/id/local-authority/32UF,Housing Landlord Manager,Void Repairs,20/11/2014,IJ00034641,580.00,Castlebuild Scaffolding Ltd, 
South Holland District Council,http://statistics.data.gov.uk/id/local-authority/32UF,Housing Landlord Manager,Fuel & Oil,20/11/2014,IJ00034532,426.35,C H Jones Ltd, 
South Holland District Council,http://statistics.data.gov.uk/id/local-authority/32UF,Environmental Services,Fuel & Oil,20/11/2014,IJ00034532,329.10,C H Jones Ltd, 
South Holland District Council,http://statistics.data.gov.uk/id/local-authority/32UF,Environmental Services,Fuel & Oil,20/11/2014,IJ00034532,4.81,C H Jones Ltd, 
South Holland District Council,http://statistics.data.gov.uk/id/local-authority/32UF,Environmental Services,Fuel & Oil,20/11/2014,IJ00034532,1469.73,C H Jones Ltd, 
South Holland District Council,http://statistics.data.gov.uk/id/local-authority/32UF,Environmental Services,Fuel & Oil,20/11/2014,IJ00034532,4.81,C H Jones Ltd, 
South Holland District Council,http://statistics.data.gov.uk/id/local-authority/32UF,Environmental Services,Fuel & Oil,20/11/2014,IJ00034532,3894.62,C H Jones Ltd, 
South Holland District Council,http://statistics.data.gov.uk/id/local-authority/32UF,Housing Landlord Manager,Fuel & Oil,20/11/2014,IJ00034532,320.20,C H Jones Ltd, 
South Holland District Council,http://statistics.data.gov.uk/id/local-authority/32UF,Housing Landlord Manager,Fuel & Oil,20/11/2014,IJ00034532,66.88,C H Jones Ltd, 
South Holland District Council,http://statistics.data.gov.uk/id/local-authority/32UF,Environmental Services,Fuel & Oil,20/11/2014,IJ00034532,4.81,C H Jones Ltd, 
South Holland District Council,http://statistics.data.gov.uk/id/local-authority/32UF,Environmental Services,Fuel & Oil,20/11/2014,IJ00034532,4.81,C H Jones Ltd, 
South Holland District Council,http://statistics.data.gov.uk/id/local-authority/32UF,Environmental Health,Fuel & Oil,20/11/2014,IJ00034532,36.41,C H Jones Ltd, 
South Holland District Council,http://statistics.data.gov.uk/id/local-authority/32UF,Environmental Services,Fuel & Oil,20/11/2014,IJ00034532,83.19,C H Jones Ltd, 
South Holland District Council,http://statistics.data.gov.uk/id/local-authority/32UF,Housing Landlord Manager,Buildings Maintenance - Responsive,20/11/2014,IJ00034524,1353.85,Cirrus Communication Systems Ltd, 
South Holland District Council,http://statistics.data.gov.uk/id/local-authority/32UF,Environmental Services,Maintenance,20/11/2014,IJ00034539,3618.20,C P Davidson & Sons Ltd, 
South Holland District Council,http://statistics.data.gov.uk/id/local-authority/32UF,Environmental Services,Maintenance,20/11/2014,IJ00034537,569.96,C P Davidson & Sons Ltd, 
South Holland District Council,http://statistics.data.gov.uk/id/local-authority/32UF,Environmental Services,Maintenance,20/11/2014,IJ00034537,4740.53,C P Davidson & Sons Ltd, 
South Holland District Council,http://statistics.data.gov.uk/id/local-authority/32UF,Environmental Services,Maintenance,20/11/2014,IJ00034537,2826.07,C P Davidson & Sons Ltd, 
South Holland District Council,http://statistics.data.gov.uk/id/local-authority/32UF,Environmental Services,Maintenance,20/11/2014,IJ00034537,736.15,C P Davidson & Sons Ltd, 
South Holland District Council,http://statistics.data.gov.uk/id/local-authority/32UF,Community Development,Gas,20/11/2014,IJ00034610,822.38,Espo, 
South Holland District Council,http://statistics.data.gov.uk/id/local-authority/32UF,HR,Other Employee Expenses,20/11/2014,IJ00034710,75.86,Fideliti Limited, 
South Holland District Council,http://statistics.data.gov.uk/id/local-authority/32UF,Balance Sheet,Payroll SHDC Child Care,20/11/2014,IJ00034710,1896.50,Fideliti Limited, 
South Holland District Council,http://statistics.data.gov.uk/id/local-authority/32UF,Capital,Works to Buildings (main Contractor),20/11/2014,IJ00034582,700.00,Focus Consultants 2010 LLP, 
South Holland District Council,http://statistics.data.gov.uk/id/local-authority/32UF,Community Development,Other Communication Costs,20/11/2014,IJ00034669,700.14,G T S Security, 
South Holland District Council,http://statistics.data.gov.uk/id/local-authority/32UF,Community Development,Other Communication Costs,20/11/2014,IJ00034683,1881.00,G T S Security, 
South Holland District Council,http://statistics.data.gov.uk/id/local-authority/32UF,Revs and Bens,Court Costs,20/11/2014,IJ00034592,744.00,H M C S, 
South Holland District Council,http://statistics.data.gov.uk/id/local-authority/32UF,Revs and Bens,Purchase Of Goods For Resale,20/11/2014,IJ00034592,24.00,H M C S, 
South Holland District Council,http://statistics.data.gov.uk/id/local-authority/32UF,Environmental Services,Agency Staff,20/11/2014,IJ00034528,735.18,Integrity Plus Ltd, 
South Holland District Council,http://statistics.data.gov.uk/id/local-authority/32UF,Environmental Services,Agency Staff,20/11/2014,IJ00034528,73.65,Integrity Plus Ltd, 
South Holland District Council,http://statistics.data.gov.uk/id/local-authority/32UF,Environmental Services,Agency Staff,20/11/2014,IJ00034528,175.60,Integrity Plus Ltd, 
South Holland District Council,http://statistics.data.gov.uk/id/local-authority/32UF,Environmental Services,Agency Staff,20/11/2014,IJ00034620,346.73,Integrity Plus Ltd, 
South Holland District Council,http://statistics.data.gov.uk/id/local-authority/32UF,Environmental Services,Agency Staff,20/11/2014,IJ00034620,369.22,Integrity Plus Ltd, 
South Holland District Council,http://statistics.data.gov.uk/id/local-authority/32UF,Environmental Services,Agency Staff,20/11/2014,IJ00034620,363.34,Integrity Plus Ltd, 
South Holland District Council,http://statistics.data.gov.uk/id/local-authority/32UF,Housing Landlord Manager,Materials and Consumables,20/11/2014,IJ00034666,6682.38,Jackson Buildbase, 
South Holland District Council,http://statistics.data.gov.uk/id/local-authority/32UF,Housing Landlord Manager,Materials and Consumables,20/11/2014,IJ00034666,654.12,Jackson Buildbase, 
South Holland District Council,http://statistics.data.gov.uk/id/local-authority/32UF,Housing Landlord Manager,Materials and Consumables,20/11/2014,IJ00034666,1519.79,Jackson Buildbase, 
South Holland District Council,http://statistics.data.gov.uk/id/local-authority/32UF,Housing Landlord Manager,Materials and Consumables,20/11/2014,IJ00034665,3388.08,Jackson Buildbase, 
South Holland District Council,http://statistics.data.gov.uk/id/local-authority/32UF,Housing Landlord Manager,Materials and Consumables,20/11/2014,IJ00034665,2943.88,Jackson Buildbase, 
South Holland District Council,http://statistics.data.gov.uk/id/local-authority/32UF,Housing Landlord Manager,Materials and Consumables,20/11/2014,IJ00034665,385.58,Jackson Buildbase, 
South Holland District Council,http://statistics.data.gov.uk/id/local-authority/32UF,Capital,"Purchase of Plant, Machinery & Equipment",20/11/2014,IJ00034654,130455.00,Johnston Sweepers Ltd, 
South Holland District Council,http://statistics.data.gov.uk/id/local-authority/32UF,Finance,External Audit Fees,20/11/2014,IJ00034720,16650.50,Kpmg Tax, 
South Holland District Council,http://statistics.data.gov.uk/id/local-authority/32UF,Community Development,Performers and Entertainers Fees,20/11/2014,IJ00034606,1373.24,Lakin Mccarthy Entertainment Ltd, 
South Holland District Council,http://statistics.data.gov.uk/id/local-authority/32UF,Community Development,Leisure Management,20/11/2014,IJ00034518,5631.03,1life Management Solutions, 
South Holland District Council,http://statistics.data.gov.uk/id/local-authority/32UF,Community Development,Leisure Management,20/11/2014,IJ00034518,5631.03,1life Management Solutions, 
South Holland District Council,http://statistics.data.gov.uk/id/local-authority/32UF,Community Development,Leisure Management,20/11/2014,IJ00034549,5631.03,1life Management Solutions, 
South Holland District Council,http://statistics.data.gov.uk/id/local-authority/32UF,Community Development,Leisure Management,20/11/2014,IJ00034549,5631.03,1life Management Solutions, 
South Holland District Council,http://statistics.data.gov.uk/id/local-authority/32UF,Environmental Health,Rent and Lease Payments,20/11/2014,IJ00034544,600.00,Lincolnshire County Council, 
South Holland District Council,http://statistics.data.gov.uk/id/local-authority/32UF,Capital,Works to Buildings (main Contractor),20/11/2014,IJ00034583,2238.00,M E Goodyear Property Maintenance, 
South Holland District Council,http://statistics.data.gov.uk/id/local-authority/32UF,Environmental Services,Furniture and Equipment,20/11/2014,IJ00034536,642.72,Organic Recycling Ltd, 
South Holland District Council,http://statistics.data.gov.uk/id/local-authority/32UF,Planning,Grants and Contributions to Outside Bodies- No Service Recei,20/11/2014,IJ00034593,627.00,Plann.It Limited, 
South Holland District Council,http://statistics.data.gov.uk/id/local-authority/32UF,Housing Landlord Manager,Materials and Consumables,20/11/2014,IJ00034650,798.78,Rexel Uk Ltd, 
South Holland District Council,http://statistics.data.gov.uk/id/local-authority/32UF,Housing Landlord Manager,Void Repairs,20/11/2014,IJ00034667,1475.00,Robert Dunmore, 
South Holland District Council,http://statistics.data.gov.uk/id/local-authority/32UF,Housing Landlord Manager,Electricity,20/11/2014,IJ00034628,3111.96,Southern Electric, 
South Holland District Council,http://statistics.data.gov.uk/id/local-authority/32UF,Housing Landlord Manager,Electricity,20/11/2014,IJ00034628,49.83,Southern Electric, 
South Holland District Council,http://statistics.data.gov.uk/id/local-authority/32UF,Housing Landlord Manager,Electricity,20/11/2014,IJ00034628,35.69,Southern Electric, 
South Holland District Council,http://statistics.data.gov.uk/id/local-authority/32UF,Housing Landlord Manager,Electricity,20/11/2014,IJ00034628,40.99,Southern Electric, 
South Holland District Council,http://statistics.data.gov.uk/id/local-authority/32UF,Housing Landlord Manager,Electricity,20/11/2014,IJ00034628,31.35,Southern Electric, 
South Holland District Council,http://statistics.data.gov.uk/id/local-authority/32UF,Housing Landlord Manager,Electricity,20/11/2014,IJ00034628,28.64,Southern Electric, 
South Holland District Council,http://statistics.data.gov.uk/id/local-authority/32UF,Housing Landlord Manager,Electricity,20/11/2014,IJ00034628,56.23,Southern Electric, 
South Holland District Council,http://statistics.data.gov.uk/id/local-authority/32UF,Housing Landlord Manager,Electricity,20/11/2014,IJ00034628,27.43,Southern Electric, 
South Holland District Council,http://statistics.data.gov.uk/id/local-authority/32UF,Housing Landlord Manager,Electricity,20/11/2014,IJ00034628,31.50,Southern Electric, 
South Holland District Council,http://statistics.data.gov.uk/id/local-authority/32UF,Housing Landlord Manager,Electricity,20/11/2014,IJ00034628,24.62,Southern Electric, 
South Holland District Council,http://statistics.data.gov.uk/id/local-authority/32UF,Housing Landlord Manager,Electricity,20/11/2014,IJ00034628,24.29,Southern Electric, 
South Holland District Council,http://statistics.data.gov.uk/id/local-authority/32UF,Housing Landlord Manager,Electricity,20/11/2014,IJ00034628,24.57,Southern Electric, 
South Holland District Council,http://statistics.data.gov.uk/id/local-authority/32UF,Housing Landlord Manager,Electricity,20/11/2014,IJ00034628,174.75,Southern Electric, 
South Holland District Council,http://statistics.data.gov.uk/id/local-authority/32UF,Housing Landlord Manager,Electricity,20/11/2014,IJ00034628,248.66,Southern Electric, 
South Holland District Council,http://statistics.data.gov.uk/id/local-authority/32UF,Housing Landlord Manager,Electricity,20/11/2014,IJ00034628,256.48,Southern Electric, 
South Holland District Council,http://statistics.data.gov.uk/id/local-authority/32UF,Housing Landlord Manager,Electricity,20/11/2014,IJ00034628,188.68,Southern Electric, 
South Holland District Council,http://statistics.data.gov.uk/id/local-authority/32UF,Housing Landlord Manager,Electricity,20/11/2014,IJ00034628,183.84,Southern Electric, 
South Holland District Council,http://statistics.data.gov.uk/id/local-authority/32UF,Housing Landlord Manager,Electricity,20/11/2014,IJ00034628,68.29,Southern Electric, 
South Holland District Council,http://statistics.data.gov.uk/id/local-authority/32UF,Housing Landlord Manager,Electricity,20/11/2014,IJ00034628,170.86,Southern Electric, 
South Holland District Council,http://statistics.data.gov.uk/id/local-authority/32UF,Housing Landlord Manager,Electricity,20/11/2014,IJ00034628,193.15,Southern Electric, 
South Holland District Council,http://statistics.data.gov.uk/id/local-authority/32UF,Housing Landlord Manager,Electricity,20/11/2014,IJ00034628,127.79,Southern Electric, 
South Holland District Council,http://statistics.data.gov.uk/id/local-authority/32UF,Housing Landlord Manager,Electricity,20/11/2014,IJ00034628,386.95,Southern Electric, 
South Holland District Council,http://statistics.data.gov.uk/id/local-authority/32UF,Housing Landlord Manager,Electricity,20/11/2014,IJ00034628,97.92,Southern Electric, 
South Holland District Council,http://statistics.data.gov.uk/id/local-authority/32UF,Housing Landlord Manager,Electricity,20/11/2014,IJ00034628,222.87,Southern Electric, 
South Holland District Council,http://statistics.data.gov.uk/id/local-authority/32UF,Asset and Property,Electricity,20/11/2014,IJ00034628,1075.99,Southern Electric, 
South Holland District Council,http://statistics.data.gov.uk/id/local-authority/32UF,Environmental Services,Electricity,20/11/2014,IJ00034628,93.21,Southern Electric, 
South Holland District Council,http://statistics.data.gov.uk/id/local-authority/32UF,Housing Landlord Manager,Electricity,20/11/2014,IJ00034628,72.80,Southern Electric, 
South Holland District Council,http://statistics.data.gov.uk/id/local-authority/32UF,Housing Landlord Manager,Electricity,20/11/2014,IJ00034628,326.87,Southern Electric, 
South Holland District Council,http://statistics.data.gov.uk/id/local-authority/32UF,Housing Landlord Manager,Electricity,20/11/2014,IJ00034628,115.05,Southern Electric, 
South Holland District Council,http://statistics.data.gov.uk/id/local-authority/32UF,Housing Landlord Manager,Electricity,20/11/2014,IJ00034628,230.38,Southern Electric, 
South Holland District Council,http://statistics.data.gov.uk/id/local-authority/32UF,Housing Landlord Manager,Electricity,20/11/2014,IJ00034628,220.84,Southern Electric, 
South Holland District Council,http://statistics.data.gov.uk/id/local-authority/32UF,Housing Landlord Manager,Electricity,20/11/2014,IJ00034628,36.08,Southern Electric, 
South Holland District Council,http://statistics.data.gov.uk/id/local-authority/32UF,Housing Landlord Manager,Electricity,20/11/2014,IJ00034628,140.14,Southern Electric, 
South Holland District Council,http://statistics.data.gov.uk/id/local-authority/32UF,Housing Landlord Manager,Electricity,20/11/2014,IJ00034628,80.36,Southern Electric, 
South Holland District Council,http://statistics.data.gov.uk/id/local-authority/32UF,Housing Landlord Manager,Electricity,20/11/2014,IJ00034628,219.50,Southern Electric, 
South Holland District Council,http://statistics.data.gov.uk/id/local-authority/32UF,Housing Landlord Manager,Electricity,20/11/2014,IJ00034628,126.00,Southern Electric, 
South Holland District Council,http://statistics.data.gov.uk/id/local-authority/32UF,Housing Landlord Manager,Electricity,20/11/2014,IJ00034628,124.45,Southern Electric, 
South Holland District Council,http://statistics.data.gov.uk/id/local-authority/32UF,Housing Landlord Manager,Electricity,20/11/2014,IJ00034628,78.66,Southern Electric, 
South Holland District Council,http://statistics.data.gov.uk/id/local-authority/32UF,Housing Landlord Manager,Electricity,20/11/2014,IJ00034628,149.50,Southern Electric, 
South Holland District Council,http://statistics.data.gov.uk/id/local-authority/32UF,Housing Landlord Manager,Electricity,20/11/2014,IJ00034628,91.21,Southern Electric, 
South Holland District Council,http://statistics.data.gov.uk/id/local-authority/32UF,Housing Landlord Manager,Electricity,20/11/2014,IJ00034628,102.50,Southern Electric, 
South Holland District Council,http://statistics.data.gov.uk/id/local-authority/32UF,Housing Landlord Manager,Electricity,20/11/2014,IJ00034628,171.77,Southern Electric, 
South Holland District Council,http://statistics.data.gov.uk/id/local-authority/32UF,Housing Landlord Manager,Electricity,20/11/2014,IJ00034628,481.36,Southern Electric, 
South Holland District Council,http://statistics.data.gov.uk/id/local-authority/32UF,Housing Landlord Manager,Electricity,20/11/2014,IJ00034628,97.61,Southern Electric, 
South Holland District Council,http://statistics.data.gov.uk/id/local-authority/32UF,Housing Landlord Manager,Electricity,20/11/2014,IJ00034628,140.39,Southern Electric, 
South Holland District Council,http://statistics.data.gov.uk/id/local-authority/32UF,Asset and Property,Electricity,20/11/2014,IJ00034628,42.09,Southern Electric, 
South Holland District Council,http://statistics.data.gov.uk/id/local-authority/32UF,Asset and Property,Electricity,20/11/2014,IJ00034628,203.20,Southern Electric, 
South Holland District Council,http://statistics.data.gov.uk/id/local-authority/32UF,Environmental Services,Electricity,20/11/2014,IJ00034628,58.78,Southern Electric, 
South Holland District Council,http://statistics.data.gov.uk/id/local-authority/32UF,Housing Landlord Manager,Electricity,20/11/2014,IJ00034628,171.01,Southern Electric, 
South Holland District Council,http://statistics.data.gov.uk/id/local-authority/32UF,Housing Landlord Manager,Electricity,20/11/2014,IJ00034628,544.82,Southern Electric, 
South Holland District Council,http://statistics.data.gov.uk/id/local-authority/32UF,Community Development,Electricity,20/11/2014,IJ00034628,842.83,Southern Electric, 
South Holland District Council,http://statistics.data.gov.uk/id/local-authority/32UF,Community Development,Electricity,20/11/2014,IJ00034628,1627.11,Southern Electric, 
South Holland District Council,http://statistics.data.gov.uk/id/local-authority/32UF,Environmental Services,Electricity,20/11/2014,IJ00034628,177.82,Southern Electric, 
South Holland District Council,http://statistics.data.gov.uk/id/local-authority/32UF,Housing Landlord Manager,Gas,20/11/2014,IJ00034628,115.66,Southern Electric, 
South Holland District Council,http://statistics.data.gov.uk/id/local-authority/32UF,Asset and Property,Electricity,20/11/2014,IJ00034691,2572.84,Southern Electric, 
South Holland District Council,http://statistics.data.gov.uk/id/local-authority/32UF,Asset and Property,Electricity,20/11/2014,IJ00034697,3603.02,Southern Electric, 
South Holland District Council,http://statistics.data.gov.uk/id/local-authority/32UF,Environmental Services,Other Miscellaneous Expenses,20/11/2014,IJ00034626,1625.00,South Holland Maintenance Ltd, 
South Holland District Council,http://statistics.data.gov.uk/id/local-authority/32UF,Community Development,Grants and Contributions to Outside Bodies- No Service Recei,20/11/2014,IJ00034700,4250.00,South Holland Parish Voluntary Car Scheme, 
South Holland District Council,http://statistics.data.gov.uk/id/local-authority/32UF,Capital,Works to Buildings (main Contractor),20/11/2014,IJ00034546,1090.00,Stanza Consulting, 
South Holland District Council,http://statistics.data.gov.uk/id/local-authority/32UF,HR,Staff Training Expenses,20/11/2014,IJ00034552,570.00,St Johns Ambulance, 
South Holland District Council,http://statistics.data.gov.uk/id/local-authority/32UF,Environmental Services,Agency Staff,20/11/2014,IJ00034530,530.14,The Best Connection Group Ltd, 
South Holland District Council,http://statistics.data.gov.uk/id/local-authority/32UF,Environmental Services,Agency Staff,20/11/2014,IJ00034530,315.22,The Best Connection Group Ltd, 
South Holland District Council,http://statistics.data.gov.uk/id/local-authority/32UF,Environmental Services,Course Fees,20/11/2014,IJ00034530,191.03,The Best Connection Group Ltd, 
South Holland District Council,http://statistics.data.gov.uk/id/local-authority/32UF,Community Development,Grants and Contributions to Outside Bodies- No Service Recei,20/11/2014,IJ00034717,750.00,The Parish Of St Mary & St Nicholas, 
South Holland District Council,http://statistics.data.gov.uk/id/local-authority/32UF,Finance,Fees and Charges General,20/11/2014,IJ00034714,-29.55,UNISON, 
South Holland District Council,http://statistics.data.gov.uk/id/local-authority/32UF,Balance Sheet,Payroll-Unison,20/11/2014,IJ00034714,1181.80,UNISON, 
South Holland District Council,http://statistics.data.gov.uk/id/local-authority/32UF,Housing Landlord Manager,Void Repairs,20/11/2014,IJ00034642,800.00,Spotless Cleaning, 
South Holland District Council,http://statistics.data.gov.uk/id/local-authority/32UF,Planning,Telephones,20/11/2014,IJ00034578,5.50,DAISY COMMUNICATIONS LTD, 
South Holland District Council,http://statistics.data.gov.uk/id/local-authority/32UF,Housing Landlord Manager,Telephones,20/11/2014,IJ00034578,913.29,DAISY COMMUNICATIONS LTD, 
South Holland District Council,http://statistics.data.gov.uk/id/local-authority/32UF,Finance,Telephones,20/11/2014,IJ00034578,916.36,DAISY COMMUNICATIONS LTD, 
South Holland District Council,http://statistics.data.gov.uk/id/local-authority/32UF,Environmental Health,Telephones,20/11/2014,IJ00034578,10.99,DAISY COMMUNICATIONS LTD, 
South Holland District Council,http://statistics.data.gov.uk/id/local-authority/32UF,Asset and Property,Telephones,20/11/2014,IJ00034578,24.82,DAISY COMMUNICATIONS LTD, 
South Holland District Council,http://statistics.data.gov.uk/id/local-authority/32UF,Building Control,Telephones,20/11/2014,IJ00034578,5.48,DAISY COMMUNICATIONS LTD, 
South Holland District Council,http://statistics.data.gov.uk/id/local-authority/32UF,Environmental Services,Telephones,20/11/2014,IJ00034578,10.99,DAISY COMMUNICATIONS LTD, 
South Holland District Council,http://statistics.data.gov.uk/id/local-authority/32UF,Housing Landlord Manager,Telephones,20/11/2014,IJ00034578,11.04,DAISY COMMUNICATIONS LTD, 
South Holland District Council,http://statistics.data.gov.uk/id/local-authority/32UF,Environmental Services,Telephones,20/11/2014,IJ00034578,11.26,DAISY COMMUNICATIONS LTD, 
South Holland District Council,http://statistics.data.gov.uk/id/local-authority/32UF,Environmental Services,Telephones,20/11/2014,IJ00034578,11.20,DAISY COMMUNICATIONS LTD, 
South Holland District Council,http://statistics.data.gov.uk/id/local-authority/32UF,Environmental Health,Telephones,20/11/2014,IJ00034578,10.99,DAISY COMMUNICATIONS LTD, 
South Holland District Council,http://statistics.data.gov.uk/id/local-authority/32UF,Housing Landlord Manager,Telephones,20/11/2014,IJ00034578,11.00,DAISY COMMUNICATIONS LTD, 
South Holland District Council,http://statistics.data.gov.uk/id/local-authority/32UF,Asset and Property,Telephones,20/11/2014,IJ00034578,10.99,DAISY COMMUNICATIONS LTD, 
South Holland District Council,http://statistics.data.gov.uk/id/local-authority/32UF,Housing Landlord Manager,Telephones,20/11/2014,IJ00034578,15.43,DAISY COMMUNICATIONS LTD, 
South Holland District Council,http://statistics.data.gov.uk/id/local-authority/32UF,Finance,Telephones,20/11/2014,IJ00034578,176.41,DAISY COMMUNICATIONS LTD, 
South Holland District Council,http://statistics.data.gov.uk/id/local-authority/32UF,Finance,Telephones,20/11/2014,IJ00034578,10.99,DAISY COMMUNICATIONS LTD, 
South Holland District Council,http://statistics.data.gov.uk/id/local-authority/32UF,Community Development,Telephones,20/11/2014,IJ00034578,12.70,DAISY COMMUNICATIONS LTD, 
South Holland District Council,http://statistics.data.gov.uk/id/local-authority/32UF,Community Development,Telephones,20/11/2014,IJ00034578,11.13,DAISY COMMUNICATIONS LTD, 
South Holland District Council,http://statistics.data.gov.uk/id/local-authority/32UF,Community Development,Telephones,20/11/2014,IJ00034578,44.13,DAISY COMMUNICATIONS LTD, 
South Holland District Council,http://statistics.data.gov.uk/id/local-authority/32UF,Community Development,Telephones,20/11/2014,IJ00034578,22.20,DAISY COMMUNICATIONS LTD, 
South Holland District Council,http://statistics.data.gov.uk/id/local-authority/32UF,Communications,Telephones,20/11/2014,IJ00034578,10.99,DAISY COMMUNICATIONS LTD, 
South Holland District Council,http://statistics.data.gov.uk/id/local-authority/32UF,Community Development,Other Miscellaneous Expenses,20/11/2014,IJ00034588,2874.69,Spa Security and Events Ltd, 
South Holland District Council,http://statistics.data.gov.uk/id/local-authority/32UF,Housing Landlord Manager,Buildings Maintenance - Responsive,20/11/2014,IJ00034679,306.75,EXPRESS LIFT ALLIANCE, 
South Holland District Council,http://statistics.data.gov.uk/id/local-authority/32UF,Housing Landlord Manager,Buildings Maintenance - Responsive,20/11/2014,IJ00034679,306.75,EXPRESS LIFT ALLIANCE, 
South Holland District Council,http://statistics.data.gov.uk/id/local-authority/32UF,Housing Landlord Manager,Buildings Maintenance - Responsive,20/11/2014,IJ00034679,306.75,EXPRESS LIFT ALLIANCE, 
South Holland District Council,http://statistics.data.gov.uk/id/local-authority/32UF,Capital,Works to Buildings (main Contractor),20/11/2014,IJ00034703,3300.00,Belmont, 
South Holland District Council,http://statistics.data.gov.uk/id/local-authority/32UF,Democratic Services,Professional & Contractors Fees,20/11/2014,IJ00034645,700.00,DAC Beachcroft Claims Ltd, 
South Holland District Council,http://statistics.data.gov.uk/id/local-authority/32UF,Environmental Health,Professional & Contractors Fees,20/11/2014,IJ00034602,569.75,Kingsley Hamilton, 
South Holland District Council,http://statistics.data.gov.uk/id/local-authority/32UF,Community Development,Leisure Management,20/11/2014,IJ00034521,545.34,Leisure in the Community, 
South Holland District Council,http://statistics.data.gov.uk/id/local-authority/32UF,Community Development,Leisure Management,20/11/2014,IJ00034521,545.34,Leisure in the Community, 
South Holland District Council,http://statistics.data.gov.uk/id/local-authority/32UF,Community Development,Leisure Management,20/11/2014,IJ00034517,545.34,Leisure in the Community, 
South Holland District Council,http://statistics.data.gov.uk/id/local-authority/32UF,Community Development,Leisure Management,20/11/2014,IJ00034517,545.34,Leisure in the Community, 
South Holland District Council,http://statistics.data.gov.uk/id/local-authority/32UF,Capital,Works to Buildings (main Contractor),20/11/2014,IJ00034595,642.50,MCP Environmental, 
South Holland District Council,http://statistics.data.gov.uk/id/local-authority/32UF,Capital,Works to Buildings (main Contractor),20/11/2014,IJ00034702,3245.00,MCP Environmental, 
South Holland District Council,http://statistics.data.gov.uk/id/local-authority/32UF,Planning,Professional & Contractors Fees,20/11/2014,IJ00034531,1202.50,MatchTech Group Plc, 
South Holland District Council,http://statistics.data.gov.uk/id/local-authority/32UF,Economic Development,Professional & Contractors Fees,20/11/2014,IJ00034574,1510.00,Oakwell Management Services Limited, 
South Holland District Council,http://statistics.data.gov.uk/id/local-authority/32UF,Environmental Services,Fuel & Oil,20/11/2014,IJ00034721,1427.80,Kier FPS Limited, 
South Holland District Council,http://statistics.data.gov.uk/id/local-authority/32UF,Economic Development,Grants and Contributions to Outside Bodies- No Service Recei,20/11/2014,IJ00034704,2450.00,Rose Regeneration Limited, 
South Holland District Council,http://statistics.data.gov.uk/id/local-authority/32UF,Housing Landlord Manager,Damp Proofing,20/11/2014,IJ00034523,1629.00,DAMP PROOF 1 LTD, 
South Holland District Council,http://statistics.data.gov.uk/id/local-authority/32UF,Housing Landlord Manager,Professional & Contractors Fees,20/11/2014,IJ00034567,3701.70,Central Consultancy and Training, 
South Holland District Council,http://statistics.data.gov.uk/id/local-authority/32UF,Community Development,Payments to Bodies in Respect of Income Collected,20/11/2014,IJ00034627,10823.00,Cantemus, 
South Holland District Council,http://statistics.data.gov.uk/id/local-authority/32UF,Community Development,Commission,20/11/2014,IJ00034627,-901.92,Cantemus, 
South Holland District Council,http://statistics.data.gov.uk/id/local-authority/32UF,Environmental Services,Agency Staff,27/11/2014,IJ00034751,468.00,247 Personnel Ltd, 
South Holland District Council,http://statistics.data.gov.uk/id/local-authority/32UF,Environmental Services,Agency Staff,27/11/2014,IJ00034751,670.50,247 Personnel Ltd, 
South Holland District Council,http://statistics.data.gov.uk/id/local-authority/32UF,Environmental Services,Agency Staff,27/11/2014,IJ00034751,193.50,247 Personnel Ltd, 
South Holland District Council,http://statistics.data.gov.uk/id/local-authority/32UF,Environmental Services,Agency Staff,27/11/2014,IJ00034751,98.96,247 Personnel Ltd, 
South Holland District Council,http://statistics.data.gov.uk/id/local-authority/32UF,Environmental Services,Agency Staff,27/11/2014,IJ00034854,526.50,247 Personnel Ltd, 
South Holland District Council,http://statistics.data.gov.uk/id/local-authority/32UF,Environmental Services,Agency Staff,27/11/2014,IJ00034854,472.50,247 Personnel Ltd, 
South Holland District Council,http://statistics.data.gov.uk/id/local-authority/32UF,Environmental Services,Agency Staff,27/11/2014,IJ00034854,333.00,247 Personnel Ltd, 
South Holland District Council,http://statistics.data.gov.uk/id/local-authority/32UF,Environmental Services,Agency Staff,27/11/2014,IJ00034856,375.55,Blue Arrow Ltd, 
South Holland District Council,http://statistics.data.gov.uk/id/local-authority/32UF,Environmental Services,Agency Staff,27/11/2014,IJ00034856,913.95,Blue Arrow Ltd, 
South Holland District Council,http://statistics.data.gov.uk/id/local-authority/32UF,Environmental Services,Agency Staff,27/11/2014,IJ00034856,1434.96,Blue Arrow Ltd, 
South Holland District Council,http://statistics.data.gov.uk/id/local-authority/32UF,Environmental Services,Agency Staff,27/11/2014,IJ00034856,221.58,Blue Arrow Ltd, 
South Holland District Council,http://statistics.data.gov.uk/id/local-authority/32UF,Environmental Services,Agency Staff,27/11/2014,IJ00034856,96.74,Blue Arrow Ltd, 
South Holland District Council,http://statistics.data.gov.uk/id/local-authority/32UF,Environmental Services,Agency Staff,27/11/2014,IJ00034856,375.55,Blue Arrow Ltd, 
South Holland District Council,http://statistics.data.gov.uk/id/local-authority/32UF,Environmental Services,Materials and Consumables,27/11/2014,IJ00034944,5792.79,Bpi Recycled Products, 
South Holland District Council,http://statistics.data.gov.uk/id/local-authority/32UF,Environmental Services,Materials and Consumables,27/11/2014,IJ00034945,5792.79,Bpi Recycled Products, 
South Holland District Council,http://statistics.data.gov.uk/id/local-authority/32UF,Environmental Services,Materials and Consumables,27/11/2014,IJ00034946,5792.79,Bpi Recycled Products, 
South Holland District Council,http://statistics.data.gov.uk/id/local-authority/32UF,Environmental Services,Materials and Consumables,27/11/2014,IJ00034946,4257.65,Bpi Recycled Products, 
South Holland District Council,http://statistics.data.gov.uk/id/local-authority/32UF,Housing,Shared Management,27/11/2014,IJ00034767,3255.31,Breckland Council, 
South Holland District Council,http://statistics.data.gov.uk/id/local-authority/32UF,ICT and Customer Services,Computer Hardware Maintenance,27/11/2014,IJ00034924,800.78,British Telecom Plc, 
South Holland District Council,http://statistics.data.gov.uk/id/local-authority/32UF,Finance,Professional & Contractors Fees,27/11/2014,IJ00034745,1152.21,Capita Business Services Ltd, 
South Holland District Council,http://statistics.data.gov.uk/id/local-authority/32UF,Housing Landlord Manager,Fuel & Oil,27/11/2014,IJ00034757,652.67,C H Jones Ltd, 
South Holland District Council,http://statistics.data.gov.uk/id/local-authority/32UF,Environmental Services,Fuel & Oil,27/11/2014,IJ00034757,253.66,C H Jones Ltd, 
South Holland District Council,http://statistics.data.gov.uk/id/local-authority/32UF,Environmental Services,Fuel & Oil,27/11/2014,IJ00034757,2269.86,C H Jones Ltd, 
South Holland District Council,http://statistics.data.gov.uk/id/local-authority/32UF,Environmental Services,Fuel & Oil,27/11/2014,IJ00034757,564.94,C H Jones Ltd, 
South Holland District Council,http://statistics.data.gov.uk/id/local-authority/32UF,Environmental Services,Fuel & Oil,27/11/2014,IJ00034757,2376.05,C H Jones Ltd, 
South Holland District Council,http://statistics.data.gov.uk/id/local-authority/32UF,Housing Landlord Manager,Fuel & Oil,27/11/2014,IJ00034757,164.70,C H Jones Ltd, 
South Holland District Council,http://statistics.data.gov.uk/id/local-authority/32UF,Housing Landlord Manager,Fuel & Oil,27/11/2014,IJ00034757,217.20,C H Jones Ltd, 
South Holland District Council,http://statistics.data.gov.uk/id/local-authority/32UF,Environmental Services,Fuel & Oil,27/11/2014,IJ00034757,27.77,C H Jones Ltd, 
South Holland District Council,http://statistics.data.gov.uk/id/local-authority/32UF,Environmental Services,Fuel & Oil,27/11/2014,IJ00034757,9.14,C H Jones Ltd, 
South Holland District Council,http://statistics.data.gov.uk/id/local-authority/32UF,Environmental Health,Fuel & Oil,27/11/2014,IJ00034757,35.59,C H Jones Ltd, 
South Holland District Council,http://statistics.data.gov.uk/id/local-authority/32UF,Environmental Services,Fuel & Oil,27/11/2014,IJ00034757,31.48,C H Jones Ltd, 
South Holland District Council,http://statistics.data.gov.uk/id/local-authority/32UF,Environmental Services,Fuel & Oil,27/11/2014,IJ00034757,16.27,C H Jones Ltd, 
South Holland District Council,http://statistics.data.gov.uk/id/local-authority/32UF,Housing Landlord Manager,Fuel & Oil,27/11/2014,IJ00034850,350.47,C H Jones Ltd, 
South Holland District Council,http://statistics.data.gov.uk/id/local-authority/32UF,Environmental Services,Fuel & Oil,27/11/2014,IJ00034850,267.70,C H Jones Ltd, 
South Holland District Council,http://statistics.data.gov.uk/id/local-authority/32UF,Environmental Services,Fuel & Oil,27/11/2014,IJ00034850,2298.48,C H Jones Ltd, 
South Holland District Council,http://statistics.data.gov.uk/id/local-authority/32UF,Environmental Services,Fuel & Oil,27/11/2014,IJ00034850,599.35,C H Jones Ltd, 
South Holland District Council,http://statistics.data.gov.uk/id/local-authority/32UF,Environmental Services,Fuel & Oil,27/11/2014,IJ00034850,2192.13,C H Jones Ltd, 
South Holland District Council,http://statistics.data.gov.uk/id/local-authority/32UF,Housing Landlord Manager,Fuel & Oil,27/11/2014,IJ00034850,441.48,C H Jones Ltd, 
South Holland District Council,http://statistics.data.gov.uk/id/local-authority/32UF,Housing Landlord Manager,Fuel & Oil,27/11/2014,IJ00034850,128.68,C H Jones Ltd, 
South Holland District Council,http://statistics.data.gov.uk/id/local-authority/32UF,Environmental Services,Fuel & Oil,27/11/2014,IJ00034850,43.37,C H Jones Ltd, 
South Holland District Council,http://statistics.data.gov.uk/id/local-authority/32UF,Environmental Services,Fuel & Oil,27/11/2014,IJ00034850,5.50,C H Jones Ltd, 
South Holland District Council,http://statistics.data.gov.uk/id/local-authority/32UF,Environmental Health,Fuel & Oil,27/11/2014,IJ00034850,26.41,C H Jones Ltd, 
South Holland District Council,http://statistics.data.gov.uk/id/local-authority/32UF,Environmental Services,Fuel & Oil,27/11/2014,IJ00034850,40.98,C H Jones Ltd, 
South Holland District Council,http://statistics.data.gov.uk/id/local-authority/32UF,Environmental Services,Fuel & Oil,27/11/2014,IJ00034850,53.57,C H Jones Ltd, 
South Holland District Council,http://statistics.data.gov.uk/id/local-authority/32UF,Housing Landlord Manager,Buildings Maintenance - Responsive,27/11/2014,IJ00034820,773.24,Cirrus Communication Systems Ltd, 
South Holland District Council,http://statistics.data.gov.uk/id/local-authority/32UF,Environmental Services,Professional & Contractors Fees,27/11/2014,IJ00034766,4714.00,Crowland Parish Council., 
South Holland District Council,http://statistics.data.gov.uk/id/local-authority/32UF,Collection Fund,Central Share of NDR Income - Government,27/11/2014,IJ00034746,1322851.00,Department For Communities & Local Government, 
South Holland District Council,http://statistics.data.gov.uk/id/local-authority/32UF,Collection Fund,Transitional Protection Payments,27/11/2014,IJ00034746,-43763.00,Department For Communities & Local Government, 
South Holland District Council,http://statistics.data.gov.uk/id/local-authority/32UF,Finance,Business Rates Tariff,27/11/2014,IJ00034746,689771.00,Department For Communities & Local Government, 
South Holland District Council,http://statistics.data.gov.uk/id/local-authority/32UF,Collection Fund,Contribution to Deficit (NDR),27/11/2014,IJ00034746,-12504.00,Department For Communities & Local Government, 
South Holland District Council,http://statistics.data.gov.uk/id/local-authority/32UF,Housing Landlord Manager,Buildings Maintenance - Responsive,27/11/2014,IJ00034825,600.00,Elston Environmental Services, 
South Holland District Council,http://statistics.data.gov.uk/id/local-authority/32UF,Asset and Property,Gas,27/11/2014,IJ00034933,978.80,Espo Gas And Electricity, 
South Holland District Council,http://statistics.data.gov.uk/id/local-authority/32UF,Housing Landlord Manager,Void Repairs,27/11/2014,IJ00034894,565.00,Feneley Flooring Co. Ltd, 
South Holland District Council,http://statistics.data.gov.uk/id/local-authority/32UF,Democratic Services,Other Miscellaneous Expenses,27/11/2014,IJ00034758,1100.00,Gedney Drove End Village Hall, 
South Holland District Council,http://statistics.data.gov.uk/id/local-authority/32UF,Housing Landlord Manager,Materials and Consumables,27/11/2014,IJ00034903,860.00,G W Engineering (Lincs) Ltd, 
South Holland District Council,http://statistics.data.gov.uk/id/local-authority/32UF,Community Development,Grants and Contributions to Outside Bodies- No Service Recei,27/11/2014,IJ00034735,3636.00,Holbeach Womens Institute Hall, 
South Holland District Council,http://statistics.data.gov.uk/id/local-authority/32UF,Environmental Services,Furniture and Equipment,27/11/2014,IJ00034814,9579.50,Imperial Civil Enforcement Solutions (Compex), 
South Holland District Council,http://statistics.data.gov.uk/id/local-authority/32UF,Housing Landlord Manager,Materials and Consumables,27/11/2014,IJ00034902,9076.40,Jackson Buildbase, 
South Holland District Council,http://statistics.data.gov.uk/id/local-authority/32UF,Housing Landlord Manager,Materials and Consumables,27/11/2014,IJ00034902,6407.46,Jackson Buildbase, 
South Holland District Council,http://statistics.data.gov.uk/id/local-authority/32UF,Housing Landlord Manager,Materials and Consumables,27/11/2014,IJ00034902,790.07,Jackson Buildbase, 
South Holland District Council,http://statistics.data.gov.uk/id/local-authority/32UF,Housing Landlord Manager,Materials and Consumables,27/11/2014,IJ00034908,2583.26,Jackson Buildbase, 
South Holland District Council,http://statistics.data.gov.uk/id/local-authority/32UF,Housing Landlord Manager,Materials and Consumables,27/11/2014,IJ00034908,2962.76,Jackson Buildbase, 
South Holland District Council,http://statistics.data.gov.uk/id/local-authority/32UF,Housing Landlord Manager,Materials and Consumables,27/11/2014,IJ00034908,1136.36,Jackson Buildbase, 
South Holland District Council,http://statistics.data.gov.uk/id/local-authority/32UF,Capital,"Purchase of Plant, Machinery & Equipment",27/11/2014,IJ00034955,75856.00,Johnston Sweepers Ltd, 
South Holland District Council,http://statistics.data.gov.uk/id/local-authority/32UF,Environmental Services,Other Miscellaneous Expenses,27/11/2014,IJ00034952,3749.88,K L Morbey Fencing, 
South Holland District Council,http://statistics.data.gov.uk/id/local-authority/32UF,Economic Development,Agency Staff,27/11/2014,IJ00034804,46000.00,Lincolnshire Chamber Of Commerce & Industry, 
South Holland District Council,http://statistics.data.gov.uk/id/local-authority/32UF,ICT and Customer Services,Computer Hardware Maintenance,27/11/2014,IJ00034909,2230.01,Lincolnshire County Council, 
South Holland District Council,http://statistics.data.gov.uk/id/local-authority/32UF,Community Development,Film and Entertainment Costs,27/11/2014,IJ00034910,996.83,Lions Gate Uk Limited, 
South Holland District Council,http://statistics.data.gov.uk/id/local-authority/32UF,Democratic Services,Other Miscellaneous Expenses,27/11/2014,IJ00034755,500.00,Long Sutton Migrant Worker Forum, 
South Holland District Council,http://statistics.data.gov.uk/id/local-authority/32UF,Housing Landlord Manager,Void Repairs,27/11/2014,IJ00034866,145.30,M & R Glass & Glazing Ltd, 
South Holland District Council,http://statistics.data.gov.uk/id/local-authority/32UF,Housing Landlord Manager,Buildings Maintenance - Responsive,27/11/2014,IJ00034866,2761.10,M & R Glass & Glazing Ltd, 
South Holland District Council,http://statistics.data.gov.uk/id/local-authority/32UF,ICT and Customer Services,Computer Software Licence Costs,27/11/2014,IJ00034776,1000.00,Northgate Information Solutions Uk Ltd, 
South Holland District Council,http://statistics.data.gov.uk/id/local-authority/32UF,Planning,Grants and Contributions to Outside Bodies- No Service Recei,27/11/2014,IJ00034774,693.00,Plann.It Limited, 
South Holland District Council,http://statistics.data.gov.uk/id/local-authority/32UF,Housing Landlord Manager,Materials and Consumables,27/11/2014,IJ00034885,530.62,Rexel Uk Ltd, 
South Holland District Council,http://statistics.data.gov.uk/id/local-authority/32UF,Housing Landlord Manager,Materials and Consumables,27/11/2014,IJ00034890,5348.40,Rexel Uk Ltd, 
South Holland District Council,http://statistics.data.gov.uk/id/local-authority/32UF,Housing Landlord Manager,Void Repairs,27/11/2014,IJ00034886,945.00,Robert Dunmore, 
South Holland District Council,http://statistics.data.gov.uk/id/local-authority/32UF,Democratic Services,Stationery,27/11/2014,IJ00034877,823.44,Royal Mail Group Ltd, 
South Holland District Council,http://statistics.data.gov.uk/id/local-authority/32UF,Democratic Services,Materials and Consumables,27/11/2014,IJ00034877,11.88,Royal Mail Group Ltd, 
South Holland District Council,http://statistics.data.gov.uk/id/local-authority/32UF,Community Development,Premises and Room Hire,27/11/2014,IJ00034919,-1165.00,S.A.D.O.S., 
South Holland District Council,http://statistics.data.gov.uk/id/local-authority/32UF,Community Development,Other Hire Fees,27/11/2014,IJ00034919,-235.00,S.A.D.O.S., 
South Holland District Council,http://statistics.data.gov.uk/id/local-authority/32UF,Community Development,Payments to Bodies in Respect of Income Collected,27/11/2014,IJ00034919,3750.00,S.A.D.O.S., 
South Holland District Council,http://statistics.data.gov.uk/id/local-authority/32UF,Community Development,Commission,27/11/2014,IJ00034919,-312.50,S.A.D.O.S., 
South Holland District Council,http://statistics.data.gov.uk/id/local-authority/32UF,Housing Landlord Manager,Grounds Maintenance Recharge,27/11/2014,IJ00034837,2255.00,South Holland Maintenance Ltd, 
South Holland District Council,http://statistics.data.gov.uk/id/local-authority/32UF,Environmental Services,Other Miscellaneous Expenses,27/11/2014,IJ00034839,4929.99,South Holland Maintenance Ltd, 
South Holland District Council,http://statistics.data.gov.uk/id/local-authority/32UF,Housing Landlord Manager,Void Repairs,27/11/2014,IJ00034900,795.00,South Holland Maintenance Ltd, 
South Holland District Council,http://statistics.data.gov.uk/id/local-authority/32UF,Housing Landlord Manager,Buildings Maintenance - Responsive,27/11/2014,IJ00034901,950.00,South Holland Maintenance Ltd, 
South Holland District Council,http://statistics.data.gov.uk/id/local-authority/32UF,Community Development,Grants and Contributions to Outside Bodies- No Service Recei,27/11/2014,IJ00034734,6632.50,Sth Lincolnshire Community Voluntary Service, 
South Holland District Council,http://statistics.data.gov.uk/id/local-authority/32UF,Housing,Grants and Contributions to Outside Bodies- No Service Recei,27/11/2014,IJ00034846,2218.00,Stuart Taplin, 
South Holland District Council,http://statistics.data.gov.uk/id/local-authority/32UF,Capital,Works to Buildings (main Contractor),27/11/2014,IJ00034852,2104.00,Stuart Taplin, 
South Holland District Council,http://statistics.data.gov.uk/id/local-authority/32UF,Housing,Grants and Contributions to Outside Bodies- No Service Recei,27/11/2014,IJ00034921,1780.00,Stuart Taplin, 
South Holland District Council,http://statistics.data.gov.uk/id/local-authority/32UF,Democratic Services,Other Miscellaneous Expenses,27/11/2014,IJ00034840,700.00,Sutton St Edmund Parish Council, 
South Holland District Council,http://statistics.data.gov.uk/id/local-authority/32UF,Democratic Services,Other Miscellaneous Expenses,27/11/2014,IJ00034842,500.00,Sutton St James Parish Council, 
South Holland District Council,http://statistics.data.gov.uk/id/local-authority/32UF,Environmental Services,Agency Staff,27/11/2014,IJ00034867,441.78,The Best Connection Group Ltd, 
South Holland District Council,http://statistics.data.gov.uk/id/local-authority/32UF,Environmental Services,Agency Staff,27/11/2014,IJ00034867,76.39,The Best Connection Group Ltd, 
South Holland District Council,http://statistics.data.gov.uk/id/local-authority/32UF,Housing,Grants and Contributions to Outside Bodies- No Service Recei,27/11/2014,IJ00034851,2820.00,Tks Of Holbeach, 
South Holland District Council,http://statistics.data.gov.uk/id/local-authority/32UF,Housing Landlord Manager,Materials and Consumables,27/11/2014,IJ00034889,905.00,Trent Fireplaces, 
South Holland District Council,http://statistics.data.gov.uk/id/local-authority/32UF,Housing Landlord Manager,Materials and Consumables,27/11/2014,IJ00034889,905.00,Trent Fireplaces, 
South Holland District Council,http://statistics.data.gov.uk/id/local-authority/32UF,Democratic Services,Other Miscellaneous Expenses,27/11/2014,IJ00034931,1000.00,Tulip Radio Ltd, 
South Holland District Council,http://statistics.data.gov.uk/id/local-authority/32UF,Housing Landlord Manager,Other Communication Costs,27/11/2014,IJ00034831,19800.00,Tunstall Healthcare UK Ltd, 
South Holland District Council,http://statistics.data.gov.uk/id/local-authority/32UF,Housing Landlord Manager,Professional & Contractors Fees,27/11/2014,IJ00034796,898.17,Valuation Office Agency, 
South Holland District Council,http://statistics.data.gov.uk/id/local-authority/32UF,Housing Landlord Manager,Void Repairs,27/11/2014,IJ00034884,930.00,Spotless Cleaning, 
South Holland District Council,http://statistics.data.gov.uk/id/local-authority/32UF,ICT and Customer Services,Furniture and Equipment,27/11/2014,IJ00034775,6920.00,Hewlett Packard Ltd, 
South Holland District Council,http://statistics.data.gov.uk/id/local-authority/32UF,Collection Fund,Precept- Lincolnshire County Council,27/11/2014,IJ00034739,2750115.00,Lincolnshire County Council, 
South Holland District Council,http://statistics.data.gov.uk/id/local-authority/32UF,Collection Fund,Share of NDR Income - Lincolnshire,27/11/2014,IJ00034739,249590.00,Lincolnshire County Council, 
South Holland District Council,http://statistics.data.gov.uk/id/local-authority/32UF,Collection Fund,Precept - Lincolnshire Police,27/11/2014,IJ00034740,500188.39,LOCAL POLICE AUTHORITY FUND ACCOUNT, 
South Holland District Council,http://statistics.data.gov.uk/id/local-authority/32UF,Democratic Services,Other Miscellaneous Expenses,27/11/2014,IJ00034754,500.00,AGAPECARE FOODBANK, 
South Holland District Council,http://statistics.data.gov.uk/id/local-authority/32UF,Community Development,Subscriptions to Organisations and Other Bodies,27/11/2014,IJ00034763,1074.71,PRS for Music, 
South Holland District Council,http://statistics.data.gov.uk/id/local-authority/32UF,Planning,Staff Recruitment,27/11/2014,IJ00034862,895.00,Haymarket Media Group, 
South Holland District Council,http://statistics.data.gov.uk/id/local-authority/32UF,Democratic Services,Other Miscellaneous Expenses,27/11/2014,IJ00034753,1500.00,Cowbit Parish Council, 
South Holland District Council,http://statistics.data.gov.uk/id/local-authority/32UF,Asset and Property,Furniture and Equipment,27/11/2014,IJ00034934,850.00,E.on Sustainable Energy, 
South Holland District Council,http://statistics.data.gov.uk/id/local-authority/32UF,Asset and Property,Furniture and Equipment,27/11/2014,IJ00034940,551.00,E.on Sustainable Energy, 
South Holland District Council,http://statistics.data.gov.uk/id/local-authority/32UF,Housing Landlord Manager,Buildings Maintenance - Responsive,27/11/2014,IJ00034896,1282.00,LANDY VENT UK LIMITED, 
South Holland District Council,http://statistics.data.gov.uk/id/local-authority/32UF,Capital,Works to Buildings (main Contractor),27/11/2014,IJ00034843,3962.00,MPL HOME IMPROVEMENTS SERVICES LINCS LTD, 
South Holland District Council,http://statistics.data.gov.uk/id/local-authority/32UF,Capital,Works to Buildings (main Contractor),27/11/2014,IJ00034849,2085.00,MPL HOME IMPROVEMENTS SERVICES LINCS LTD, 
South Holland District Council,http://statistics.data.gov.uk/id/local-authority/32UF,Capital,Works to Buildings (main Contractor),27/11/2014,IJ00034853,1990.00,MPL HOME IMPROVEMENTS SERVICES LINCS LTD, 
South Holland District Council,http://statistics.data.gov.uk/id/local-authority/32UF,Housing,Grants and Contributions to Outside Bodies- No Service Recei,27/11/2014,IJ00034922,2080.00,MPL HOME IMPROVEMENTS SERVICES LINCS LTD, 
South Holland District Council,http://statistics.data.gov.uk/id/local-authority/32UF,Democratic Services,Postages,27/11/2014,IJ00034818,602.85,ELECTORAL REFORM SERVICES, 
South Holland District Council,http://statistics.data.gov.uk/id/local-authority/32UF,HR,Other Employee Expenses,27/11/2014,IJ00034939,600.00,Cook Connect Ltd, 
South Holland District Council,http://statistics.data.gov.uk/id/local-authority/32UF,Housing Landlord Manager,Buildings Maintenance - Responsive,27/11/2014,IJ00034898,1085.00,Andrew Hicks t a Hicks Electrical, 
South Holland District Council,http://statistics.data.gov.uk/id/local-authority/32UF,Community Development,Buildings Maintenance - Responsive,27/11/2014,IJ00034838,2587.50,LINCOLNSHIRE MASONRY LTD, 
South Holland District Council,http://statistics.data.gov.uk/id/local-authority/32UF,Environmental Health,Professional & Contractors Fees,27/11/2014,IJ00034923,645.00,Kingsley Hamilton, 
South Holland District Council,http://statistics.data.gov.uk/id/local-authority/32UF,Community Development,Other Miscellaneous Expenses,27/11/2014,IJ00034857,880.00,Positive Media Promotions Ltd, 
South Holland District Council,http://statistics.data.gov.uk/id/local-authority/32UF,Capital,Works to Buildings (main Contractor),27/11/2014,IJ00034824,2170.00,MCP Environmental, 
South Holland District Council,http://statistics.data.gov.uk/id/local-authority/32UF,Planning,Professional & Contractors Fees,27/11/2014,IJ00034334,1131.98,MatchTech Group Plc, 
South Holland District Council,http://statistics.data.gov.uk/id/local-authority/32UF,Planning,Professional & Contractors Fees,27/11/2014,IJ00034772,1178.13,MatchTech Group Plc, 
South Holland District Council,http://statistics.data.gov.uk/id/local-authority/32UF,Economic Development,Grants and Contributions to Outside Bodies- No Service Recei,27/11/2014,IJ00034845,2285.00,Select Timber Products Limited, 
South Holland District Council,http://statistics.data.gov.uk/id/local-authority/32UF,Economic Development,Grants and Contributions to Outside Bodies- No Service Recei,27/11/2014,IJ00034904,2515.00,AUBOURN FIREWOOD LTD, 
South Holland District Council,http://statistics.data.gov.uk/id/local-authority/32UF,Economic Development,Grants and Contributions to Outside Bodies- No Service Recei,27/11/2014,IJ00034847,16000.00,T and B Containers Ltd, 
South Holland District Council,http://statistics.data.gov.uk/id/local-authority/32UF,Economic Development,Grants and Contributions to Outside Bodies- No Service Recei,27/11/2014,IJ00034844,1120.00,Badges Ltd TA Enterprise Products, 
South Holland District Council,http://statistics.data.gov.uk/id/local-authority/32UF,Community Development,Grants and Contributions to Outside Bodies- No Service Recei,27/11/2014,IJ00034792,12500.00,Holbeach Junior Football Club, 
South Holland District Council,http://statistics.data.gov.uk/id/local-authority/32UF,Economic Development,Grants and Contributions to Outside Bodies- No Service Recei,27/11/2014,IJ00034848,1220.00,Boud Minerals Ltd, 
South Holland District Council,http://statistics.data.gov.uk/id/local-authority/32UF,Democratic Services,Other Miscellaneous Expenses,27/11/2014,IJ00034958,1500.00,Long Sutton Athletic 83 Football Club, 
South Holland District Council,http://statistics.data.gov.uk/id/local-authority/32UF,Finance,Internal Drainage Board Levies,28/11/2014,IJ00034960,61025.59,BLACK SLUICE INTERNAL DRAINAGE BOARD, 
South Holland District Council,http://statistics.data.gov.uk/id/local-authority/32UF,Capital,Purchase of Buildings,28/11/2014,IJ00034961,71000.00,Minster Law Ltd, 
South Holland District Council,http://statistics.data.gov.uk/id/local-authority/32UF,Capital,Purchase of Buildings,28/11/2014,IJ00034961,7.21,Minster Law Ltd, 
